{"text_format":"1","workbook":"xlsx","n_sheets":43,"sheets":["Шаблон плана","План","1","2","3","4","5","6","7","8","9","10","11","12","13","14","15","16","17","18","19","20","21","22","23","24","25","26","27","28","29","30","31","32","33","34","35","36","37","38","39","40","41"],"not_rendered":{"charts":0,"images":1,"macros":1,"external_links":0,"defined_names":1,"comments":0,"pivot_tables":0},"unopened":[],"bounds":{"document_bytes":16777216,"sheet_cells":100000,"rows_first":2000,"rows_last":500,"rows_between":2000,"halvings":0,"cell_chars":16384,"cell_head_chars":4096},"cells_cut":0,"cells_raw":0,"read":"whole","date_system":"1900"}

{"sheet":"Шаблон плана","index":0,"n_rows":23,"n_cols":6,"rows_kept":23,"cut":false,"hidden":false,"merged":[[21,0,21,5],[19,0,19,5],[17,0,17,5],[5,0,5,5],[0,0,0,5],[1,0,1,5],[2,0,2,5],[3,0,3,5],[4,0,4,5],[14,0,14,5],[11,0,11,5],[10,0,10,5],[8,0,8,5]]}
["УТВЕРЖДЕН"]
["приказом генерального директора"]
["ООО «Гамма» В.В. Тагилова"]
["2024-12-01"]
["(в соответствии со ст. 214 ТК и"]
["приказом Минтруда от 29.10.2021 № 771н)"]
[]
[]
["План"]
[]
["мероприятий по улучшению условий и охраны труда, ликвидации или снижению уровней профессиональных рисков и недопущению повышения их уровней"]
["на 2025 год"]
[]
["Мероприятие","Ответственные","Срок проведения","Ожидаемый результат","Требуемый объем\r\nфинансовых\r\nсредств","Источник финансирования"]
["1. Специальная оценка условий труда"]
["1.1. Услуги сторонних организаций по проведению специальной оценки условий труда",null,"Январь, Апрель",null,69000]
["1.2. Идентификация вредных и опасных производственных факторов",null,"Март",null,42000]
["2. Мероприятия по улучшению условий труда по итогам спецоценки"]
["2.2. Устройство и реконструкция отопительных и вентиляционных систем в производственных и бытовых помещениях, тепловых и воздушных завес, аспирационных и пылегазоулавливающих установок, установок кондиционирования воздуха с целью обеспечения нормального теплового режима и микроклимата, чистоты воздушной среды в рабочей и обслуживаемых зонах помещений",null,"Февраль ",null,400]
["4. Проведение обучения по охране труда"]
["4.1. Обучение по общим вопросам охраны труда и функционирования системы управления охраноц труда (программа А) в учебном центре",null,"Январь-Февраль ",null,41000]
["28. Внедрение систем автоматического и дистанционного управления и регулирования производственным оборудованием, технологическими процессами, подъемными и транспортными устройствами"]
["28.1. Закупка автоматических систем",null,"Январь",null,4000]

{"sheet":"План","index":1,"n_rows":49,"n_cols":8,"rows_kept":49,"cut":false,"hidden":false,"merged":[[0,0,0,6],[48,0,48,7]]}
["План мероприятий по улучшению условий и охраны труда, ликвидации или снижению уровней профессиональных рисков и недопущению повышения их уровней"]
["Номер мероприятия","Вид мероприятия по охране труда","Наименование мероприятия","Ответственные","Срок проведения","Ожидаемый результат","Требуемый объем\nфинансовых\nсредств","Источник финансирования"]
[1,"Специальная оценка условий труда ",null,null,null,null,{"$f":"'1'!B18","v":111000}]
[2,"Мероприятия по улучшению условий труда по итогам спецоценки ",null,null,null,null,{"$f":"'2'!B16","v":400}]
[3,"Обязательные предварительные и периодические медицинские осмотры",null,null,null,null,{"$f":"'3'!B16","v":0}]
[4,"Проведение обучения по охране труда",null,null,null,null,{"$f":"'4'!B16","v":41000}]
[5,"Приобретение отдельных приборов, устройств, оборудования и комплексов систем, устройств, оборудования для проведения обучения по вопросам безопасного ведения работ",null,null,null,null,{"$f":"'5'!B16","v":0}]
[6,"Оснащение кабинетов и учебных классов по охране труда, проведение конкурсов по охране труда",null,null,null,null,{"$f":"'6'!B16","v":0}]
[7,"Издание инструкций и правил по охране труда",null,null,null,null,{"$f":"'7'!B16","v":0}]
[8,"Приобретение профессиональных изданий для специалиста по охране труда ",null,null,null,null,{"$f":"'8'!B16","v":0}]
[9,"Приобретение специальной одежды, специальной обуви и других средств индивидуальной защиты",null,null,null,null,{"$f":"'9'!B16","v":0}]
[10,"Приобретение дерматологических СИЗ и смывающих средств",null,null,null,null,{"$f":"'10'!B16","v":0}]
[11,"Хранение и уход за СИЗ",null,null,null,null,{"$f":"'11'!B16","v":0}]
[12,"Обеспечение работников лечебно-профилактическим питанием",null,null,null,null,{"$f":"'12'!B16","v":0}]
[13,"Приобретение и монтаж установок для обеспечения работников питьевой водой",null,null,null,null,{"$f":"'13'!B16","v":0}]
[14,"Организация санаторно-курортного лечения работников",null,null,null,null,{"$f":"'14'!B16","v":0}]
[15,"Приобретение аптечек для оказания первой помощи",null,null,null,null,{"$f":"'15'!B16","v":0}]
[16,"Оборудование помещения для оказания медицинской помощи или создание санитарных постов ",null,null,null,null,{"$f":"'16'!B16","v":0}]
[17,"Приобретение алкотестеров и тахографов ",null,null,null,null,{"$f":"'17'!B16","v":0}]
[18,"Организация и проведение производственного контроля ",null,null,null,null,{"$f":"'18'!B16","v":0}]
[19,"Устройство и модернизация средств коллективной защиты ",null,null,null,null,{"$f":"'19'!B16","v":0}]
[20,"Нанесение на производственное оборудование, элементы конструкций и на другие объекты сигнальных цветов и знаков безопасности",null,null,null,null,{"$f":"'20'!B16","v":0}]
[21,"Устройство защитных ограждений от воздействия движущихся частей и разлетающихся предметов",null,null,null,null,{"$f":"'21'!B16","v":0}]
[22,"Реконструкция и оснащение санитарно-бытовых помещений",null,null,null,null,{"$f":"'22'!B16","v":0}]
[23,"Устройство или реконструкция мест отдыха, обогрева работников при работах на открытом воздухе, укрытий от солнечных лучей и атмосферных осадков ",null,null,null,null,{"$f":"'23'!B16","v":0}]
[24,"Проектирование и обустройство учебно-тренировочных полигонов для отработки практических навыков безопасного производства работ",null,null,null,null,{"$f":"'24'!B16","v":0}]
[25,"Приобретение оборудования, защитных устройств, приспособлений, автоматизация технологических процессов и пр. ",null,null,null,null,{"$f":"'25'!B23","v":0}]
[26,"Организация мероприятий по развитию физической культуры и спорта в коллективе",null,null,null,null,{"$f":"'26'!B16","v":0}]
[27,"Оценка профессиональных рисков",null,null,null,null,{"$f":"'27'!B16","v":0}]
[28,"Внедрение систем автоматического и дистанционного управления и регулирования производственным оборудованием, технологическими процессами, подъемными и транспортными устройствами",null,null,null,null,{"$f":"'28'!B16","v":4000}]
[29,"Приобретение и монтаж средств сигнализации, средств аварийной остановки, а также устройств, позволяющих исключить возникновение опасных ситуаций ",null,null,null,null,{"$f":"'29'!B16","v":0}]
[30,"Внедрение и модернизация технических устройств и приспособлений, обеспечивающих защиту работников от поражения электрическим током",null,null,null,null,{"$f":"'30'!B16","v":0}]
[31,"Установка предохранительных, защитных и сигнализирующих устройств для безопасной эксплуатации и аварийной защиты производственных коммуникаций, оборудования и сооружений",null,null,null,null,{"$f":"'31'!B16","v":0}]
[32,"Механизация и автоматизация технологических операций, связанных с хранением, перемещением, заполнением и опорожнением передвижных и стационарных резервуаров с ядовитыми, агрессивными, легковоспламеняющимися и горючими жидкостями",null,null,null,null,{"$f":"'32'!B16","v":0}]
[33,"Механизация работ при складировании и транспортировании сырья, готовой продукции и отходов производства",null,null,null,null,{"$f":"'33'!B16","v":0}]
[34,"Механизация уборки производственных помещений, своевременное удаление и обезвреживание отходов производства",null,null,null,null,{"$f":"'34'!B16","v":0}]
[35,"Устройство и реконструкция отопительных и вентиляционных систем в производственных и бытовых помещениях, тепловых и воздушных завес, аспирационных и пылегазоулавливающих установок, установок дезинфекции, аэрирования, кондиционирования воздуха",null,null,null,null,{"$f":"'35'!B16","v":0}]
[36,"Обеспечение естественного и искусственного освещения на рабочих местах, в бытовых помещениях, местах прохода работников",null,null,null,null,{"$f":"'36'!B16","v":0}]
[37,"Устройство и содержание пешеходных дорог, тротуаров, переходов, тоннелей, галерей на территории организации в целях обеспечения безопасности работников",null,null,null,null,{"$f":"'37'!B16","v":0}]
[38,"Перепланировка размещения производственного оборудования, организация рабочих мест с целью обеспечения безопасности работников",null,null,null,null,{"$f":"'38'!B16","v":0}]
[39,"Приобретение систем обеспечения безопасности работ на высоте",null,null,null,null,{"$f":"'39'!B16","v":0}]
[40,"Разработка и приобретение электронных программ документооборота ",null,null,null,null,{"$f":"'40'!B16","v":0}]
[41,"Приобретение приборов, устройств и оборудования для дистанционной фиксации процессов производства работ",null,null,null,null,{"$f":"'41'!B16","v":0}]
[]
[]
[]
[null,"ИТОГО",null,null,null,null,{"$f":"SUM(G3:G43)","v":156400}]
[]
["Распечатать план мероприятий"]

{"sheet":"1","index":2,"n_rows":20,"n_cols":30,"rows_kept":20,"cut":false,"hidden":false,"merged":[[0,1,1,1],[0,0,1,0],[0,10,0,11],[0,12,0,13],[0,26,0,27],[0,2,1,2],[0,3,1,3],[0,4,1,4],[0,28,0,29],[0,5,1,5],[0,14,0,15],[0,16,0,17],[0,18,0,19],[0,20,0,21],[0,22,0,23],[0,24,0,25],[0,6,0,7],[0,8,0,9]]}
[1,"Специальная оценка условий труда","Ответственные","Ожидаемый результат","Источник финансирования","ИТОГО","Январь",null,"Февраль ",null,"Март",null,"Апрель",null,"Май",null,"Июнь",null,"Июль",null,"Август",null,"Сентябрь",null,"Октябрь",null,"Ноябрь",null,"Декабрь"]
[null,null,null,null,null,null,"кол-во","стоимость","кол-во","стоимость","кол-во","стоимость","кол-во","стоимость","кол-во","стоимость","кол-во","стоимость","кол-во","стоимость","кол-во","стоимость","кол-во","стоимость","кол-во","стоимость","кол-во","стоимость","кол-во","стоимость"]
["Столбец1","Столбец2","Столбец28","Столбец29","Столбец30","Столбец3","Столбец4","Столбец5","Столбец6","Столбец7","Столбец8","Столбец9","Столбец10","Столбец11","Столбец12","Столбец13","Столбец14","Столбец15","Столбец16","Столбец17","Столбец18","Столбец19","Столбец20","Столбец21","Столбец22","Столбец23","Столбец24","Столбец25","Столбец26","Столбец27"]
[{"$f":"$A$1&\".\"&ROW()-3&\".\"","v":"1.1."},"Услуги сторонних организаций по проведению специальной оценки условий труда",null,null,null,{"$f":"G4*H4+I4*J4+K4*L4+M4*N4+O4*P4+Q4*R4+S4*T4+U4*V4+W4*X4+Y4*Z4+AA4*AB4+AC4*AD4","v":69000},4,6000,null,null,null,null,5,9000]
["1.2.","Идентификация вредных и опасных производственных факторов",null,null,null,42000,null,null,null,null,7,6000]
["1.3.",null,null,null,null,0]
["1.4.",null,null,null,null,{"$f":"G7*H7+I7*J7+K7*L7+M7*N7+O7*P7+Q7*R7+S7*T7+U7*V7+W7*X7+Y7*Z7+AA7*AB7+AC7*AD7","v":0}]
["1.5.",null,null,null,null,0]
["1.6.",null,null,null,null,0]
["1.7.",null,null,null,null,0]
["1.8.",null,null,null,null,0]
["1.9.",null,null,null,null,0]
["1.10.",null,null,null,null,0]
["1.11.",null,null,null,null,0]
["1.12.",null,null,null,null,{"$f":"G15*H15+I15*J15+K15*L15+M15*N15+O15*P15+Q15*R15+S15*T15+U15*V15+W15*X15+Y15*Z15+AA15*AB15+AC15*AD15","v":0}]
[]
[]
["ИТОГО",{"$f":"SUM(F:F)","v":111000}]
[]
[null,"ВЕРНУТЬСЯ К ПЕРЕЧНЮ"]

{"sheet":"2","index":3,"n_rows":18,"n_cols":30,"rows_kept":18,"cut":false,"hidden":false,"merged":[[0,10,0,11],[0,0,1,0],[0,1,1,1],[0,5,1,5],[0,6,0,7],[0,8,0,9],[0,2,1,2],[0,3,1,3],[0,4,1,4],[0,24,0,25],[0,26,0,27],[0,28,0,29],[0,12,0,13],[0,14,0,15],[0,16,0,17],[0,18,0,19],[0,20,0,21],[0,22,0,23]]}
[2,"Мероприятия по улучшению условий труда по итогам спецоценки","Ответственные","Ожидаемый результат","Источник финансирования","ИТОГО","Январь",null,"Февраль ",null,"Март",null,"Апрель",null,"Май",null,"Июнь",null,"Июль",null,"Август",null,"Сентябрь",null,"Октябрь",null,"Ноябрь",null,"Декабрь"]
[null,null,null,null,null,null,"кол-во","стоимость","кол-во","стоимость","кол-во","стоимость","кол-во","стоимость","кол-во","стоимость","кол-во","стоимость","кол-во","стоимость","кол-во","стоимость","кол-во","стоимость","кол-во","стоимость","кол-во","стоимость","кол-во","стоимость"]
["Столбец1","Столбец2","Столбец28","Столбец29","Столбец30","Столбец3","Столбец4","Столбец5","Столбец6","Столбец7","Столбец8","Столбец9","Столбец10","Столбец11","Столбец12","Столбец13","Столбец14","Столбец15","Столбец16","Столбец17","Столбец18","Столбец19","Столбец20","Столбец21","Столбец22","Столбец23","Столбец24","Столбец25","Столбец26","Столбец27"]
[{"$f":"$A$1&\".\"&ROW()-3&\".\"","v":"2.1."},"Модернизация оборудования и технологических процессов на рабочих местах для снижения до допустимых уровней содержания вредных веществ в воздухе рабочей зоны, механических колебаний (шум, вибрация, ультразвук, инфразвук) и излучений (ионизирующего, электромагнитного, лазерного, ультрафиолетового)",null,null,null,{"$f":"G4*H4+I4*J4+K4*L4+M4*N4+O4*P4+Q4*R4+S4*T4+U4*V4+W4*X4+Y4*Z4+AA4*AB4+AC4*AD4","v":0}]
["2.2.","Устройство и реконструкция отопительных и вентиляционных систем в производственных и бытовых помещениях, тепловых и воздушных завес, аспирационных и пылегазоулавливающих установок, установок кондиционирования воздуха с целью обеспечения нормального теплового режима и микроклимата, чистоты воздушной среды в рабочей и обслуживаемых зонах помещений",null,null,null,400,null,null,2,200]
["2.3.","Приведение уровней естественного и искусственного освещения на рабочих местах, в бытовых помещениях, местах прохода работников в соответствии с действующими нормами",null,null,null,0]
["2.4.",null,null,null,null,0]
["2.5.",null,null,null,null,0]
["2.6.",null,null,null,null,0]
["2.7.",null,null,null,null,0]
["2.8.",null,null,null,null,0]
["2.9.",null,null,null,null,0]
["2.10.",null,null,null,null,0]
[]
[]
["ИТОГО",{"$f":"SUM(F:F)","v":400}]
[]
[null,"ВЕРНУТЬСЯ К ПЕРЕЧНЮ"]

{"sheet":"3","index":4,"n_rows":18,"n_cols":30,"rows_kept":18,"cut":false,"hidden":false,"merged":[[0,10,0,11],[0,0,1,0],[0,1,1,1],[0,5,1,5],[0,6,0,7],[0,8,0,9],[0,2,1,2],[0,3,1,3],[0,4,1,4],[0,24,0,25],[0,26,0,27],[0,28,0,29],[0,12,0,13],[0,14,0,15],[0,16,0,17],[0,18,0,19],[0,20,0,21],[0,22,0,23]]}
[3,"Обязательные предварительные и периодические медицинские осмотры","Ответственные","Ожидаемый результат","Источник финансирования","ИТОГО","Январь",null,"Февраль ",null,"Март",null,"Апрель",null,"Май",null,"Июнь",null,"Июль",null,"Август",null,"Сентябрь",null,"Октябрь",null,"Ноябрь",null,"Декабрь"]
[null,null,null,null,null,null,"кол-во","стоимость","кол-во","стоимость","кол-во","стоимость","кол-во","стоимость","кол-во","стоимость","кол-во","стоимость","кол-во","стоимость","кол-во","стоимость","кол-во","стоимость","кол-во","стоимость","кол-во","стоимость","кол-во","стоимость"]
["Столбец1","Столбец2","Столбец28","Столбец29","Столбец30","Столбец3","Столбец4","Столбец5","Столбец6","Столбец7","Столбец8","Столбец9","Столбец10","Столбец11","Столбец12","Столбец13","Столбец14","Столбец15","Столбец16","Столбец17","Столбец18","Столбец19","Столбец20","Столбец21","Столбец22","Столбец23","Столбец24","Столбец25","Столбец26","Столбец27"]
[{"$f":"$A$1&\".\"&ROW()-3&\".\"","v":"3.1."},"Предварительные медосмотры",null,null,null,{"$f":"G4*H4+I4*J4+K4*L4+M4*N4+O4*P4+Q4*R4+S4*T4+U4*V4+W4*X4+Y4*Z4+AA4*AB4+AC4*AD4","v":0}]
["3.2.","Периодические медосмотры",null,null,null,0]
["3.3.","Предсменные и послесменные медосмотры ",null,null,null,0]
["3.4.","Предрейсовые и послерейсовые медосмотры",null,null,null,0]
["3.5.","Психиатрическое освидетельствование",null,null,null,0]
["3.6.","Медосмотры в течение рабочего дня (смены)",null,null,null,0]
["3.7.",null,null,null,null,0]
["3.8.",null,null,null,null,0]
["3.9.",null,null,null,null,0]
["3.10.",null,null,null,null,0]
[]
[]
["ИТОГО",{"$f":"SUM(F:F)","v":0}]
[]
[null,"ВЕРНУТЬСЯ К ПЕРЕЧНЮ"]

{"sheet":"4","index":5,"n_rows":18,"n_cols":30,"rows_kept":18,"cut":false,"hidden":false,"merged":[[0,10,0,11],[0,0,1,0],[0,1,1,1],[0,5,1,5],[0,6,0,7],[0,8,0,9],[0,2,1,2],[0,3,1,3],[0,4,1,4],[0,24,0,25],[0,26,0,27],[0,28,0,29],[0,12,0,13],[0,14,0,15],[0,16,0,17],[0,18,0,19],[0,20,0,21],[0,22,0,23]]}
[4,"Проведение обучения по охране труда","Ответственные","Ожидаемый результат","Источник финансирования","ИТОГО","Январь",null,"Февраль ",null,"Март",null,"Апрель",null,"Май",null,"Июнь",null,"Июль",null,"Август",null,"Сентябрь",null,"Октябрь",null,"Ноябрь",null,"Декабрь"]
[null,null,null,null,null,null,"кол-во","стоимость","кол-во","стоимость","кол-во","стоимость","кол-во","стоимость","кол-во","стоимость","кол-во","стоимость","кол-во","стоимость","кол-во","стоимость","кол-во","стоимость","кол-во","стоимость","кол-во","стоимость","кол-во","стоимость"]
["Столбец1","Столбец2","Столбец28","Столбец29","Столбец30","Столбец3","Столбец4","Столбец5","Столбец6","Столбец7","Столбец8","Столбец9","Столбец10","Столбец11","Столбец12","Столбец13","Столбец14","Столбец15","Столбец16","Столбец17","Столбец18","Столбец19","Столбец20","Столбец21","Столбец22","Столбец23","Столбец24","Столбец25","Столбец26","Столбец27"]
[{"$f":"$A$1&\".\"&ROW()-3&\".\"","v":"4.1."},"Обучение по общим вопросам охраны труда и функционирования системы управления охраноц труда (программа А) в учебном центре",null,null,null,{"$f":"G4*H4+I4*J4+K4*L4+M4*N4+O4*P4+Q4*R4+S4*T4+U4*V4+W4*X4+Y4*Z4+AA4*AB4+AC4*AD4","v":41000},3,7000,5,4000]
["4.2.","Обучение безопасным методам и приемам выполнения работ при воздействии вредных, опасных производственных факторов, источников опасности, индентифицированных в рамках спецоценки и оценки проффесиональных рисков (программа Б) в учебном центре",null,null,null,0]
["4.3.","Обучение безопасным методам и приемам выполнения работ повышенной опасности (программа В) в учебном центре",null,null,null,0]
["4.4.","Обучение по использованию (применению) СИЗ в учебном центре",null,null,null,0]
["4.5.",null,null,null,null,0]
["4.6.",null,null,null,null,0]
["4.7.",null,null,null,null,0]
["4.8.",null,null,null,null,0]
["4.9.",null,null,null,null,0]
["4.10.",null,null,null,null,0]
[]
[]
["ИТОГО",{"$f":"SUM(F:F)","v":41000}]
[]
[null,"ВЕРНУТЬСЯ К ПЕРЕЧНЮ"]

{"sheet":"5","index":6,"n_rows":18,"n_cols":30,"rows_kept":18,"cut":false,"hidden":false,"merged":[[0,10,0,11],[0,0,1,0],[0,1,1,1],[0,5,1,5],[0,6,0,7],[0,8,0,9],[0,2,1,2],[0,3,1,3],[0,4,1,4],[0,24,0,25],[0,26,0,27],[0,28,0,29],[0,12,0,13],[0,14,0,15],[0,16,0,17],[0,18,0,19],[0,20,0,21],[0,22,0,23]]}
[5,"Приобретение отдельных приборов, устройств, оборудования и комплексов систем, устройств, оборудования для проведения обучения по вопросам безопасного ведения работ","Ответственные","Ожидаемый результат","Источник финансирования","ИТОГО","Январь",null,"Февраль ",null,"Март",null,"Апрель",null,"Май",null,"Июнь",null,"Июль",null,"Август",null,"Сентябрь",null,"Октябрь",null,"Ноябрь",null,"Декабрь"]
[null,null,null,null,null,null,"кол-во","стоимость","кол-во","стоимость","кол-во","стоимость","кол-во","стоимость","кол-во","стоимость","кол-во","стоимость","кол-во","стоимость","кол-во","стоимость","кол-во","стоимость","кол-во","стоимость","кол-во","стоимость","кол-во","стоимость"]
["Столбец1","Столбец2","Столбец28","Столбец29","Столбец30","Столбец3","Столбец4","Столбец5","Столбец6","Столбец7","Столбец8","Столбец9","Столбец10","Столбец11","Столбец12","Столбец13","Столбец14","Столбец15","Столбец16","Столбец17","Столбец18","Столбец19","Столбец20","Столбец21","Столбец22","Столбец23","Столбец24","Столбец25","Столбец26","Столбец27"]
[{"$f":"$A$1&\".\"&ROW()-3&\".\"","v":"5.1."},"Обучение оказанию первой помощи в учебном центре",null,null,null,{"$f":"G4*H4+I4*J4+K4*L4+M4*N4+O4*P4+Q4*R4+S4*T4+U4*V4+W4*X4+Y4*Z4+AA4*AB4+AC4*AD4","v":0}]
["5.2.","Оплата услуг приглашенного инструктора",null,null,null,0]
["5.3.","Закупка приборов",null,null,null,0]
["5.4.",null,null,null,null,0]
["5.5.",null,null,null,null,0]
["5.6.",null,null,null,null,0]
["5.7.",null,null,null,null,0]
["5.8.",null,null,null,null,0]
["5.9.",null,null,null,null,0]
["5.10.",null,null,null,null,0]
[]
[]
["ИТОГО",{"$f":"SUM(F:F)","v":0}]
[]
[null,"ВЕРНУТЬСЯ К ПЕРЕЧНЮ"]

{"sheet":"6","index":7,"n_rows":18,"n_cols":30,"rows_kept":18,"cut":false,"hidden":false,"merged":[[0,10,0,11],[0,0,1,0],[0,1,1,1],[0,5,1,5],[0,6,0,7],[0,8,0,9],[0,2,1,2],[0,3,1,3],[0,4,1,4],[0,24,0,25],[0,26,0,27],[0,28,0,29],[0,12,0,13],[0,14,0,15],[0,16,0,17],[0,18,0,19],[0,20,0,21],[0,22,0,23]]}
[6,"Оснащение кабинетов и учебных классов по охране труда, проведение конкурсов по охране труда","Ответственные","Ожидаемый результат","Источник финансирования","ИТОГО","Январь",null,"Февраль ",null,"Март",null,"Апрель",null,"Май",null,"Июнь",null,"Июль",null,"Август",null,"Сентябрь",null,"Октябрь",null,"Ноябрь",null,"Декабрь"]
[null,null,null,null,null,null,"кол-во","стоимость","кол-во","стоимость","кол-во","стоимость","кол-во","стоимость","кол-во","стоимость","кол-во","стоимость","кол-во","стоимость","кол-во","стоимость","кол-во","стоимость","кол-во","стоимость","кол-во","стоимость","кол-во","стоимость"]
["Столбец1","Столбец2","Столбец28","Столбец29","Столбец30","Столбец3","Столбец4","Столбец5","Столбец6","Столбец7","Столбец8","Столбец9","Столбец10","Столбец11","Столбец12","Столбец13","Столбец14","Столбец15","Столбец16","Столбец17","Столбец18","Столбец19","Столбец20","Столбец21","Столбец22","Столбец23","Столбец24","Столбец25","Столбец26","Столбец27"]
[{"$f":"$A$1&\".\"&ROW()-3&\".\"","v":"6.1."},"Оснащение кабинета по охране труда",null,null,null,{"$f":"G4*H4+I4*J4+K4*L4+M4*N4+O4*P4+Q4*R4+S4*T4+U4*V4+W4*X4+Y4*Z4+AA4*AB4+AC4*AD4","v":0}]
["6.2.","Проведение Дня охраны труда",null,null,null,0]
["6.3.","Проведение конкурса по охране труда",null,null,null,0]
["6.4.",null,null,null,null,0]
["6.5.",null,null,null,null,0]
["6.6.",null,null,null,null,0]
["6.7.",null,null,null,null,0]
["6.8.",null,null,null,null,0]
["6.9.",null,null,null,null,0]
["6.10.",null,null,null,null,0]
[]
[]
["ИТОГО",{"$f":"SUM(F:F)","v":0}]
[]
[null,"ВЕРНУТЬСЯ К ПЕРЕЧНЮ"]

{"sheet":"7","index":8,"n_rows":18,"n_cols":30,"rows_kept":18,"cut":false,"hidden":false,"merged":[[0,10,0,11],[0,0,1,0],[0,1,1,1],[0,5,1,5],[0,6,0,7],[0,8,0,9],[0,2,1,2],[0,3,1,3],[0,4,1,4],[0,24,0,25],[0,26,0,27],[0,28,0,29],[0,12,0,13],[0,14,0,15],[0,16,0,17],[0,18,0,19],[0,20,0,21],[0,22,0,23]]}
[7,"Издание инструкций и правил по охране труда","Ответственные","Ожидаемый результат","Источник финансирования","ИТОГО","Январь",null,"Февраль ",null,"Март",null,"Апрель",null,"Май",null,"Июнь",null,"Июль",null,"Август",null,"Сентябрь",null,"Октябрь",null,"Ноябрь",null,"Декабрь"]
[null,null,null,null,null,null,"кол-во","стоимость","кол-во","стоимость","кол-во","стоимость","кол-во","стоимость","кол-во","стоимость","кол-во","стоимость","кол-во","стоимость","кол-во","стоимость","кол-во","стоимость","кол-во","стоимость","кол-во","стоимость","кол-во","стоимость"]
["Столбец1","Столбец2","Столбец28","Столбец29","Столбец30","Столбец3","Столбец4","Столбец5","Столбец6","Столбец7","Столбец8","Столбец9","Столбец10","Столбец11","Столбец12","Столбец13","Столбец14","Столбец15","Столбец16","Столбец17","Столбец18","Столбец19","Столбец20","Столбец21","Столбец22","Столбец23","Столбец24","Столбец25","Столбец26","Столбец27"]
[{"$f":"$A$1&\".\"&ROW()-3&\".\"","v":"7.1."},"Издание инструкций по охране труда",null,null,null,{"$f":"G4*H4+I4*J4+K4*L4+M4*N4+O4*P4+Q4*R4+S4*T4+U4*V4+W4*X4+Y4*Z4+AA4*AB4+AC4*AD4","v":0}]
["7.2.","Тиражирование инструкций по охране труда ",null,null,null,0]
["7.3.",null,null,null,null,0]
["7.4.",null,null,null,null,0]
["7.5.",null,null,null,null,0]
["7.6.",null,null,null,null,0]
["7.7.",null,null,null,null,0]
["7.8.",null,null,null,null,0]
["7.9.",null,null,null,null,0]
["7.10.",null,null,null,null,0]
[]
[]
["ИТОГО",{"$f":"SUM(F:F)","v":0}]
[]
[null,"ВЕРНУТЬСЯ К ПЕРЕЧНЮ"]

{"sheet":"8","index":9,"n_rows":18,"n_cols":30,"rows_kept":18,"cut":false,"hidden":false,"merged":[[0,10,0,11],[0,0,1,0],[0,1,1,1],[0,5,1,5],[0,6,0,7],[0,8,0,9],[0,2,1,2],[0,3,1,3],[0,4,1,4],[0,24,0,25],[0,26,0,27],[0,28,0,29],[0,12,0,13],[0,14,0,15],[0,16,0,17],[0,18,0,19],[0,20,0,21],[0,22,0,23]]}
[8,"Приобретение профессиональных изданий для специалиста по охране труда ","Ответственные","Ожидаемый результат","Источник финансирования","ИТОГО","Январь",null,"Февраль ",null,"Март",null,"Апрель",null,"Май",null,"Июнь",null,"Июль",null,"Август",null,"Сентябрь",null,"Октябрь",null,"Ноябрь",null,"Декабрь"]
[null,null,null,null,null,null,"кол-во","стоимость","кол-во","стоимость","кол-во","стоимость","кол-во","стоимость","кол-во","стоимость","кол-во","стоимость","кол-во","стоимость","кол-во","стоимость","кол-во","стоимость","кол-во","стоимость","кол-во","стоимость","кол-во","стоимость"]
["Столбец1","Столбец2","Столбец28","Столбец29","Столбец30","Столбец3","Столбец4","Столбец5","Столбец6","Столбец7","Столбец8","Столбец9","Столбец10","Столбец11","Столбец12","Столбец13","Столбец14","Столбец15","Столбец16","Столбец17","Столбец18","Столбец19","Столбец20","Столбец21","Столбец22","Столбец23","Столбец24","Столбец25","Столбец26","Столбец27"]
[{"$f":"$A$1&\".\"&ROW()-3&\".\"","v":"8.1."},"Журнал \"Справочник специалиста по охране труда\"",null,null,null,{"$f":"G4*H4+I4*J4+K4*L4+M4*N4+O4*P4+Q4*R4+S4*T4+U4*V4+W4*X4+Y4*Z4+AA4*AB4+AC4*AD4","v":0}]
["8.2.","Справочная электронная система \"Охрана труда\"",null,null,null,0]
["8.3.","Журнал \"Охрана труда в вопросах и ответах\"",null,null,null,0]
["8.4.",null,null,null,null,0]
["8.5.",null,null,null,null,0]
["8.6.",null,null,null,null,0]
["8.7.",null,null,null,null,0]
["8.8.",null,null,null,null,0]
["8.9.",null,null,null,null,0]
["8.10.",null,null,null,null,0]
[]
[]
["ИТОГО",{"$f":"SUM(F:F)","v":0}]
[]
[null,"ВЕРНУТЬСЯ К ПЕРЕЧНЮ"]

{"sheet":"9","index":10,"n_rows":18,"n_cols":30,"rows_kept":18,"cut":false,"hidden":false,"merged":[[0,10,0,11],[0,0,1,0],[0,1,1,1],[0,5,1,5],[0,6,0,7],[0,8,0,9],[0,2,1,2],[0,3,1,3],[0,4,1,4],[0,24,0,25],[0,26,0,27],[0,28,0,29],[0,12,0,13],[0,14,0,15],[0,16,0,17],[0,18,0,19],[0,20,0,21],[0,22,0,23]]}
[9,"Приобретение специальной одежды, специальной обуви и других средств индивидуальной защиты","Ответственные","Ожидаемый результат","Источник финансирования","ИТОГО","Январь",null,"Февраль ",null,"Март",null,"Апрель",null,"Май",null,"Июнь",null,"Июль",null,"Август",null,"Сентябрь",null,"Октябрь",null,"Ноябрь",null,"Декабрь"]
[null,null,null,null,null,null,"кол-во","стоимость","кол-во","стоимость","кол-во","стоимость","кол-во","стоимость","кол-во","стоимость","кол-во","стоимость","кол-во","стоимость","кол-во","стоимость","кол-во","стоимость","кол-во","стоимость","кол-во","стоимость","кол-во","стоимость"]
["Столбец1","Столбец2","Столбец28","Столбец29","Столбец30","Столбец3","Столбец4","Столбец5","Столбец6","Столбец7","Столбец8","Столбец9","Столбец10","Столбец11","Столбец12","Столбец13","Столбец14","Столбец15","Столбец16","Столбец17","Столбец18","Столбец19","Столбец20","Столбец21","Столбец22","Столбец23","Столбец24","Столбец25","Столбец26","Столбец27"]
[{"$f":"$A$1&\".\"&ROW()-3&\".\"","v":"9.1."},"Приобретение летней спецодежды",null,null,null,{"$f":"G4*H4+I4*J4+K4*L4+M4*N4+O4*P4+Q4*R4+S4*T4+U4*V4+W4*X4+Y4*Z4+AA4*AB4+AC4*AD4","v":0}]
["9.2.","Приобретение летней спецобуви",null,null,null,0]
["9.3.","Приобретение зимней спецодежды",null,null,null,0]
["9.4.","Приобретение зимней спецобуви",null,null,null,0]
["9.5.",null,null,null,null,0]
["9.6.",null,null,null,null,0]
["9.7.",null,null,null,null,0]
["9.8.",null,null,null,null,0]
["9.9.",null,null,null,null,0]
["9.10.",null,null,null,null,0]
[]
[]
["ИТОГО",{"$f":"SUM(F:F)","v":0}]
[]
[null,"ВЕРНУТЬСЯ К ПЕРЕЧНЮ"]

{"sheet":"10","index":11,"n_rows":18,"n_cols":30,"rows_kept":18,"cut":false,"hidden":false,"merged":[[0,10,0,11],[0,0,1,0],[0,1,1,1],[0,5,1,5],[0,6,0,7],[0,8,0,9],[0,2,1,2],[0,3,1,3],[0,4,1,4],[0,24,0,25],[0,26,0,27],[0,28,0,29],[0,12,0,13],[0,14,0,15],[0,16,0,17],[0,18,0,19],[0,20,0,21],[0,22,0,23]]}
[10,"Приобретение дерматологических СИЗ и смывающих средств","Ответственные","Ожидаемый результат","Источник финансирования","ИТОГО","Январь",null,"Февраль ",null,"Март",null,"Апрель",null,"Май",null,"Июнь",null,"Июль",null,"Август",null,"Сентябрь",null,"Октябрь",null,"Ноябрь",null,"Декабрь"]
[null,null,null,null,null,null,"кол-во","стоимость","кол-во","стоимость","кол-во","стоимость","кол-во","стоимость","кол-во","стоимость","кол-во","стоимость","кол-во","стоимость","кол-во","стоимость","кол-во","стоимость","кол-во","стоимость","кол-во","стоимость","кол-во","стоимость"]
["Столбец1","Столбец2","Столбец28","Столбец29","Столбец30","Столбец3","Столбец4","Столбец5","Столбец6","Столбец7","Столбец8","Столбец9","Столбец10","Столбец11","Столбец12","Столбец13","Столбец14","Столбец15","Столбец16","Столбец17","Столбец18","Столбец19","Столбец20","Столбец21","Столбец22","Столбец23","Столбец24","Столбец25","Столбец26","Столбец27"]
[{"$f":"$A$1&\".\"&ROW()-3&\".\"","v":"10.1."},"Приобетение защитных средств",null,null,null,{"$f":"G4*H4+I4*J4+K4*L4+M4*N4+O4*P4+Q4*R4+S4*T4+U4*V4+W4*X4+Y4*Z4+AA4*AB4+AC4*AD4","v":0}]
["10.2.","Приобретение очищающих средств",null,null,null,0]
["10.3.","Приобретение восстанавливающих средств",null,null,null,0]
["10.4.",null,null,null,null,0]
["10.5.",null,null,null,null,0]
["10.6.",null,null,null,null,0]
["10.7.",null,null,null,null,0]
["10.8.",null,null,null,null,0]
["10.9.",null,null,null,null,0]
["10.10.",null,null,null,null,0]
[]
[]
["ИТОГО",{"$f":"SUM(F:F)","v":0}]
[]
[null,"ВЕРНУТЬСЯ К ПЕРЕЧНЮ"]

{"sheet":"11","index":12,"n_rows":18,"n_cols":30,"rows_kept":18,"cut":false,"hidden":false,"merged":[[0,10,0,11],[0,0,1,0],[0,1,1,1],[0,5,1,5],[0,6,0,7],[0,8,0,9],[0,2,1,2],[0,3,1,3],[0,4,1,4],[0,24,0,25],[0,26,0,27],[0,28,0,29],[0,12,0,13],[0,14,0,15],[0,16,0,17],[0,18,0,19],[0,20,0,21],[0,22,0,23]]}
[11,"Хранение и уход за СИЗ","Ответственные","Ожидаемый результат","Источник финансирования","ИТОГО","Январь",null,"Февраль ",null,"Март",null,"Апрель",null,"Май",null,"Июнь",null,"Июль",null,"Август",null,"Сентябрь",null,"Октябрь",null,"Ноябрь",null,"Декабрь"]
[null,null,null,null,null,null,"кол-во","стоимость","кол-во","стоимость","кол-во","стоимость","кол-во","стоимость","кол-во","стоимость","кол-во","стоимость","кол-во","стоимость","кол-во","стоимость","кол-во","стоимость","кол-во","стоимость","кол-во","стоимость","кол-во","стоимость"]
["Столбец1","Столбец2","Столбец28","Столбец29","Столбец30","Столбец3","Столбец4","Столбец5","Столбец6","Столбец7","Столбец8","Столбец9","Столбец10","Столбец11","Столбец12","Столбец13","Столбец14","Столбец15","Столбец16","Столбец17","Столбец18","Столбец19","Столбец20","Столбец21","Столбец22","Столбец23","Столбец24","Столбец25","Столбец26","Столбец27"]
[{"$f":"$A$1&\".\"&ROW()-3&\".\"","v":"11.1."},"Хранение СИЗ",null,null,null,{"$f":"G4*H4+I4*J4+K4*L4+M4*N4+O4*P4+Q4*R4+S4*T4+U4*V4+W4*X4+Y4*Z4+AA4*AB4+AC4*AD4","v":0}]
["11.2.","Химчистка",null,null,null,0]
["11.3.","Стирка",null,null,null,0]
["11.4.","Дегазация",null,null,null,0]
["11.5.","Дезактивация",null,null,null,0]
["11.6.","Обезвреживание",null,null,null,0]
["11.7.","Обеспыливание",null,null,null,0]
["11.8.","Сушка",null,null,null,0]
["11.9.","Ремонт ",null,null,null,0]
["11.10.","Замена СИЗ",null,null,null,0]
[]
[]
["ИТОГО",{"$f":"SUM(F:F)","v":0}]
[]
[null,"ВЕРНУТЬСЯ К ПЕРЕЧНЮ"]

{"sheet":"12","index":13,"n_rows":18,"n_cols":30,"rows_kept":18,"cut":false,"hidden":false,"merged":[[0,10,0,11],[0,0,1,0],[0,1,1,1],[0,5,1,5],[0,6,0,7],[0,8,0,9],[0,2,1,2],[0,3,1,3],[0,4,1,4],[0,24,0,25],[0,26,0,27],[0,28,0,29],[0,12,0,13],[0,14,0,15],[0,16,0,17],[0,18,0,19],[0,20,0,21],[0,22,0,23]]}
[12,"Обеспечение работников лечебно-профилактическим питанием","Ответственные","Ожидаемый результат","Источник финансирования","ИТОГО","Январь",null,"Февраль ",null,"Март",null,"Апрель",null,"Май",null,"Июнь",null,"Июль",null,"Август",null,"Сентябрь",null,"Октябрь",null,"Ноябрь",null,"Декабрь"]
[null,null,null,null,null,null,"кол-во","стоимость","кол-во","стоимость","кол-во","стоимость","кол-во","стоимость","кол-во","стоимость","кол-во","стоимость","кол-во","стоимость","кол-во","стоимость","кол-во","стоимость","кол-во","стоимость","кол-во","стоимость","кол-во","стоимость"]
["Столбец1","Столбец2","Столбец28","Столбец29","Столбец30","Столбец3","Столбец4","Столбец5","Столбец6","Столбец7","Столбец8","Столбец9","Столбец10","Столбец11","Столбец12","Столбец13","Столбец14","Столбец15","Столбец16","Столбец17","Столбец18","Столбец19","Столбец20","Столбец21","Столбец22","Столбец23","Столбец24","Столбец25","Столбец26","Столбец27"]
[{"$f":"$A$1&\".\"&ROW()-3&\".\"","v":"12.1."},"Закупка лечебно-профилактического питания",null,null,null,{"$f":"G4*H4+I4*J4+K4*L4+M4*N4+O4*P4+Q4*R4+S4*T4+U4*V4+W4*X4+Y4*Z4+AA4*AB4+AC4*AD4","v":0}]
["12.2.",null,null,null,null,0]
["12.3.",null,null,null,null,0]
["12.4.",null,null,null,null,0]
["12.5.",null,null,null,null,0]
["12.6.",null,null,null,null,0]
["12.7.",null,null,null,null,0]
["12.8.",null,null,null,null,0]
["12.9.",null,null,null,null,0]
["12.10.",null,null,null,null,0]
[]
[]
["ИТОГО",{"$f":"SUM(F:F)","v":0}]
[]
[null,"ВЕРНУТЬСЯ К ПЕРЕЧНЮ"]

{"sheet":"13","index":14,"n_rows":18,"n_cols":30,"rows_kept":18,"cut":false,"hidden":false,"merged":[[0,10,0,11],[0,0,1,0],[0,1,1,1],[0,5,1,5],[0,6,0,7],[0,8,0,9],[0,2,1,2],[0,3,1,3],[0,4,1,4],[0,24,0,25],[0,26,0,27],[0,28,0,29],[0,12,0,13],[0,14,0,15],[0,16,0,17],[0,18,0,19],[0,20,0,21],[0,22,0,23]]}
[13,"Приобретение и монтаж установок для обеспечения работников питьевой водой","Ответственные","Ожидаемый результат","Источник финансирования","ИТОГО","Январь",null,"Февраль ",null,"Март",null,"Апрель",null,"Май",null,"Июнь",null,"Июль",null,"Август",null,"Сентябрь",null,"Октябрь",null,"Ноябрь",null,"Декабрь"]
[null,null,null,null,null,null,"кол-во","стоимость","кол-во","стоимость","кол-во","стоимость","кол-во","стоимость","кол-во","стоимость","кол-во","стоимость","кол-во","стоимость","кол-во","стоимость","кол-во","стоимость","кол-во","стоимость","кол-во","стоимость","кол-во","стоимость"]
["Столбец1","Столбец2","Столбец28","Столбец29","Столбец30","Столбец3","Столбец4","Столбец5","Столбец6","Столбец7","Столбец8","Столбец9","Столбец10","Столбец11","Столбец12","Столбец13","Столбец14","Столбец15","Столбец16","Столбец17","Столбец18","Столбец19","Столбец20","Столбец21","Столбец22","Столбец23","Столбец24","Столбец25","Столбец26","Столбец27"]
[{"$f":"$A$1&\".\"&ROW()-3&\".\"","v":"13.1."},"Приобретение установок ",null,null,null,{"$f":"G4*H4+I4*J4+K4*L4+M4*N4+O4*P4+Q4*R4+S4*T4+U4*V4+W4*X4+Y4*Z4+AA4*AB4+AC4*AD4","v":0}]
["13.2.","Монтаж установок",null,null,null,0]
["13.3.",null,null,null,null,0]
["13.4.",null,null,null,null,0]
["13.5.",null,null,null,null,0]
["13.6.",null,null,null,null,0]
["13.7.",null,null,null,null,0]
["13.8.",null,null,null,null,0]
["13.9.",null,null,null,null,0]
["13.10.",null,null,null,null,0]
[]
[]
["ИТОГО",{"$f":"SUM(F:F)","v":0}]
[]
[null,"ВЕРНУТЬСЯ К ПЕРЕЧНЮ"]

{"sheet":"14","index":15,"n_rows":18,"n_cols":30,"rows_kept":18,"cut":false,"hidden":false,"merged":[[0,10,0,11],[0,0,1,0],[0,1,1,1],[0,5,1,5],[0,6,0,7],[0,8,0,9],[0,2,1,2],[0,3,1,3],[0,4,1,4],[0,24,0,25],[0,26,0,27],[0,28,0,29],[0,12,0,13],[0,14,0,15],[0,16,0,17],[0,18,0,19],[0,20,0,21],[0,22,0,23]]}
[14,"Организация санаторно-курортного лечения работников","Ответственные","Ожидаемый результат","Источник финансирования","ИТОГО","Январь",null,"Февраль ",null,"Март",null,"Апрель",null,"Май",null,"Июнь",null,"Июль",null,"Август",null,"Сентябрь",null,"Октябрь",null,"Ноябрь",null,"Декабрь"]
[null,null,null,null,null,null,"кол-во","стоимость","кол-во","стоимость","кол-во","стоимость","кол-во","стоимость","кол-во","стоимость","кол-во","стоимость","кол-во","стоимость","кол-во","стоимость","кол-во","стоимость","кол-во","стоимость","кол-во","стоимость","кол-во","стоимость"]
["Столбец1","Столбец2","Столбец28","Столбец29","Столбец30","Столбец3","Столбец4","Столбец5","Столбец6","Столбец7","Столбец8","Столбец9","Столбец10","Столбец11","Столбец12","Столбец13","Столбец14","Столбец15","Столбец16","Столбец17","Столбец18","Столбец19","Столбец20","Столбец21","Столбец22","Столбец23","Столбец24","Столбец25","Столбец26","Столбец27"]
[{"$f":"$A$1&\".\"&ROW()-3&\".\"","v":"14.1."},"Приобретение путевок",null,null,null,{"$f":"G4*H4+I4*J4+K4*L4+M4*N4+O4*P4+Q4*R4+S4*T4+U4*V4+W4*X4+Y4*Z4+AA4*AB4+AC4*AD4","v":0}]
["14.2.","Оплата проезда сотрудников ",null,null,null,0]
["14.3.",null,null,null,null,0]
["14.4.",null,null,null,null,0]
["14.5.",null,null,null,null,0]
["14.6.",null,null,null,null,0]
["14.7.",null,null,null,null,0]
["14.8.",null,null,null,null,0]
["14.9.",null,null,null,null,0]
["14.10.",null,null,null,null,0]
[]
[]
["ИТОГО",{"$f":"SUM(F:F)","v":0}]
[]
[null,"ВЕРНУТЬСЯ К ПЕРЕЧНЮ"]

{"sheet":"15","index":16,"n_rows":18,"n_cols":30,"rows_kept":18,"cut":false,"hidden":false,"merged":[[0,10,0,11],[0,0,1,0],[0,1,1,1],[0,5,1,5],[0,6,0,7],[0,8,0,9],[0,2,1,2],[0,3,1,3],[0,4,1,4],[0,24,0,25],[0,26,0,27],[0,28,0,29],[0,12,0,13],[0,14,0,15],[0,16,0,17],[0,18,0,19],[0,20,0,21],[0,22,0,23]]}
[15,"Приобретение аптечек для оказания первой помощи","Ответственные","Ожидаемый результат","Источник финансирования","ИТОГО","Январь",null,"Февраль ",null,"Март",null,"Апрель",null,"Май",null,"Июнь",null,"Июль",null,"Август",null,"Сентябрь",null,"Октябрь",null,"Ноябрь",null,"Декабрь"]
[null,null,null,null,null,null,"кол-во","стоимость","кол-во","стоимость","кол-во","стоимость","кол-во","стоимость","кол-во","стоимость","кол-во","стоимость","кол-во","стоимость","кол-во","стоимость","кол-во","стоимость","кол-во","стоимость","кол-во","стоимость","кол-во","стоимость"]
["Столбец1","Столбец2","Столбец28","Столбец29","Столбец30","Столбец3","Столбец4","Столбец5","Столбец6","Столбец7","Столбец8","Столбец9","Столбец10","Столбец11","Столбец12","Столбец13","Столбец14","Столбец15","Столбец16","Столбец17","Столбец18","Столбец19","Столбец20","Столбец21","Столбец22","Столбец23","Столбец24","Столбец25","Столбец26","Столбец27"]
[{"$f":"$A$1&\".\"&ROW()-3&\".\"","v":"15.1."},"Приобретение аптечек для оказания первой помощи",null,null,null,{"$f":"G4*H4+I4*J4+K4*L4+M4*N4+O4*P4+Q4*R4+S4*T4+U4*V4+W4*X4+Y4*Z4+AA4*AB4+AC4*AD4","v":0}]
["15.2.",null,null,null,null,0]
["15.3.",null,null,null,null,0]
["15.4.",null,null,null,null,0]
["15.5.",null,null,null,null,0]
["15.6.",null,null,null,null,0]
["15.7.",null,null,null,null,0]
["15.8.",null,null,null,null,0]
["15.9.",null,null,null,null,0]
["15.10.",null,null,null,null,0]
[]
[]
["ИТОГО",{"$f":"SUM(F:F)","v":0}]
[]
[null,"ВЕРНУТЬСЯ К ПЕРЕЧНЮ"]

{"sheet":"16","index":17,"n_rows":18,"n_cols":30,"rows_kept":18,"cut":false,"hidden":false,"merged":[[0,10,0,11],[0,0,1,0],[0,1,1,1],[0,5,1,5],[0,6,0,7],[0,8,0,9],[0,2,1,2],[0,3,1,3],[0,4,1,4],[0,24,0,25],[0,26,0,27],[0,28,0,29],[0,12,0,13],[0,14,0,15],[0,16,0,17],[0,18,0,19],[0,20,0,21],[0,22,0,23]]}
[16,"Оборудование помещения для оказания медицинской помощи или создание санитарных постов ","Ответственные","Ожидаемый результат","Источник финансирования","ИТОГО","Январь",null,"Февраль ",null,"Март",null,"Апрель",null,"Май",null,"Июнь",null,"Июль",null,"Август",null,"Сентябрь",null,"Октябрь",null,"Ноябрь",null,"Декабрь"]
[null,null,null,null,null,null,"кол-во","стоимость","кол-во","стоимость","кол-во","стоимость","кол-во","стоимость","кол-во","стоимость","кол-во","стоимость","кол-во","стоимость","кол-во","стоимость","кол-во","стоимость","кол-во","стоимость","кол-во","стоимость","кол-во","стоимость"]
["Столбец1","Столбец2","Столбец28","Столбец29","Столбец30","Столбец3","Столбец4","Столбец5","Столбец6","Столбец7","Столбец8","Столбец9","Столбец10","Столбец11","Столбец12","Столбец13","Столбец14","Столбец15","Столбец16","Столбец17","Столбец18","Столбец19","Столбец20","Столбец21","Столбец22","Столбец23","Столбец24","Столбец25","Столбец26","Столбец27"]
[{"$f":"$A$1&\".\"&ROW()-3&\".\"","v":"16.1."},"Приобретение мебели",null,null,null,{"$f":"G4*H4+I4*J4+K4*L4+M4*N4+O4*P4+Q4*R4+S4*T4+U4*V4+W4*X4+Y4*Z4+AA4*AB4+AC4*AD4","v":0}]
["16.2.","Приобретение приборов для определения артериального давления",null,null,null,0]
["16.3.","Приобретение термометров",null,null,null,0]
["16.4.","Приобретение стефонендоскопов",null,null,null,0]
["16.5.",null,null,null,null,0]
["16.6.",null,null,null,null,0]
["16.7.",null,null,null,null,0]
["16.8.",null,null,null,null,0]
["16.9.",null,null,null,null,0]
["16.10.",null,null,null,null,0]
[]
[]
["ИТОГО",{"$f":"SUM(F:F)","v":0}]
[]
[null,"ВЕРНУТЬСЯ К ПЕРЕЧНЮ"]

{"sheet":"17","index":18,"n_rows":18,"n_cols":30,"rows_kept":18,"cut":false,"hidden":false,"merged":[[0,10,0,11],[0,0,1,0],[0,1,1,1],[0,5,1,5],[0,6,0,7],[0,8,0,9],[0,2,1,2],[0,3,1,3],[0,4,1,4],[0,24,0,25],[0,26,0,27],[0,28,0,29],[0,12,0,13],[0,14,0,15],[0,16,0,17],[0,18,0,19],[0,20,0,21],[0,22,0,23]]}
[17,"Приобретение алкотестеров и тахографов","Ответственные","Ожидаемый результат","Источник финансирования","ИТОГО","Январь",null,"Февраль ",null,"Март",null,"Апрель",null,"Май",null,"Июнь",null,"Июль",null,"Август",null,"Сентябрь",null,"Октябрь",null,"Ноябрь",null,"Декабрь"]
[null,null,null,null,null,null,"кол-во","стоимость","кол-во","стоимость","кол-во","стоимость","кол-во","стоимость","кол-во","стоимость","кол-во","стоимость","кол-во","стоимость","кол-во","стоимость","кол-во","стоимость","кол-во","стоимость","кол-во","стоимость","кол-во","стоимость"]
["Столбец1","Столбец2","Столбец28","Столбец29","Столбец30","Столбец3","Столбец4","Столбец5","Столбец6","Столбец7","Столбец8","Столбец9","Столбец10","Столбец11","Столбец12","Столбец13","Столбец14","Столбец15","Столбец16","Столбец17","Столбец18","Столбец19","Столбец20","Столбец21","Столбец22","Столбец23","Столбец24","Столбец25","Столбец26","Столбец27"]
[{"$f":"$A$1&\".\"&ROW()-3&\".\"","v":"17.1."},"Приобретение алкотестеров",null,null,null,{"$f":"G4*H4+I4*J4+K4*L4+M4*N4+O4*P4+Q4*R4+S4*T4+U4*V4+W4*X4+Y4*Z4+AA4*AB4+AC4*AD4","v":0}]
["17.2.","Приобретение тахографов",null,null,null,0]
["17.3.",null,null,null,null,0]
["17.4.",null,null,null,null,0]
["17.5.",null,null,null,null,0]
["17.6.",null,null,null,null,0]
["17.7.",null,null,null,null,0]
["17.8.",null,null,null,null,0]
["17.9.",null,null,null,null,0]
["17.10.",null,null,null,null,0]
[]
[]
["ИТОГО",{"$f":"SUM(F:F)","v":0}]
[]
[null,"ВЕРНУТЬСЯ К ПЕРЕЧНЮ"]

{"sheet":"18","index":19,"n_rows":18,"n_cols":30,"rows_kept":18,"cut":false,"hidden":false,"merged":[[0,10,0,11],[0,0,1,0],[0,1,1,1],[0,5,1,5],[0,6,0,7],[0,8,0,9],[0,2,1,2],[0,3,1,3],[0,4,1,4],[0,24,0,25],[0,26,0,27],[0,28,0,29],[0,12,0,13],[0,14,0,15],[0,16,0,17],[0,18,0,19],[0,20,0,21],[0,22,0,23]]}
[18,"Организация и проведение производственного контроля ","Ответственные","Ожидаемый результат","Источник финансирования","ИТОГО","Январь",null,"Февраль ",null,"Март",null,"Апрель",null,"Май",null,"Июнь",null,"Июль",null,"Август",null,"Сентябрь",null,"Октябрь",null,"Ноябрь",null,"Декабрь"]
[null,null,null,null,null,null,"кол-во","стоимость","кол-во","стоимость","кол-во","стоимость","кол-во","стоимость","кол-во","стоимость","кол-во","стоимость","кол-во","стоимость","кол-во","стоимость","кол-во","стоимость","кол-во","стоимость","кол-во","стоимость","кол-во","стоимость"]
["Столбец1","Столбец2","Столбец28","Столбец29","Столбец30","Столбец3","Столбец4","Столбец5","Столбец6","Столбец7","Столбец8","Столбец9","Столбец10","Столбец11","Столбец12","Столбец13","Столбец14","Столбец15","Столбец16","Столбец17","Столбец18","Столбец19","Столбец20","Столбец21","Столбец22","Столбец23","Столбец24","Столбец25","Столбец26","Столбец27"]
[{"$f":"$A$1&\".\"&ROW()-3&\".\"","v":"18.1."},"Заказ программы производственного контроля в специализированной организации",null,null,null,{"$f":"G4*H4+I4*J4+K4*L4+M4*N4+O4*P4+Q4*R4+S4*T4+U4*V4+W4*X4+Y4*Z4+AA4*AB4+AC4*AD4","v":0}]
["18.2.","Проведение периодических лабораторных измерений",null,null,null,0]
["18.3.",null,null,null,null,0]
["18.4.",null,null,null,null,0]
["18.5.",null,null,null,null,0]
["18.6.",null,null,null,null,0]
["18.7.",null,null,null,null,0]
["18.8.",null,null,null,null,0]
["18.9.",null,null,null,null,0]
["18.10.",null,null,null,null,0]
[]
[]
["ИТОГО",{"$f":"SUM(F:F)","v":0}]
[]
[null,"ВЕРНУТЬСЯ К ПЕРЕЧНЮ"]

{"sheet":"19","index":20,"n_rows":18,"n_cols":30,"rows_kept":18,"cut":false,"hidden":false,"merged":[[0,10,0,11],[0,0,1,0],[0,1,1,1],[0,5,1,5],[0,6,0,7],[0,8,0,9],[0,2,1,2],[0,3,1,3],[0,4,1,4],[0,24,0,25],[0,26,0,27],[0,28,0,29],[0,12,0,13],[0,14,0,15],[0,16,0,17],[0,18,0,19],[0,20,0,21],[0,22,0,23]]}
[19,"Устройство и модернизация средств коллективной защиты ","Ответственные","Ожидаемый результат","Источник финансирования","ИТОГО","Январь",null,"Февраль ",null,"Март",null,"Апрель",null,"Май",null,"Июнь",null,"Июль",null,"Август",null,"Сентябрь",null,"Октябрь",null,"Ноябрь",null,"Декабрь"]
[null,null,null,null,null,null,"кол-во","стоимость","кол-во","стоимость","кол-во","стоимость","кол-во","стоимость","кол-во","стоимость","кол-во","стоимость","кол-во","стоимость","кол-во","стоимость","кол-во","стоимость","кол-во","стоимость","кол-во","стоимость","кол-во","стоимость"]
["Столбец1","Столбец2","Столбец28","Столбец29","Столбец30","Столбец3","Столбец4","Столбец5","Столбец6","Столбец7","Столбец8","Столбец9","Столбец10","Столбец11","Столбец12","Столбец13","Столбец14","Столбец15","Столбец16","Столбец17","Столбец18","Столбец19","Столбец20","Столбец21","Столбец22","Столбец23","Столбец24","Столбец25","Столбец26","Столбец27"]
[{"$f":"$A$1&\".\"&ROW()-3&\".\"","v":"19.1."},null,null,null,null,{"$f":"G4*H4+I4*J4+K4*L4+M4*N4+O4*P4+Q4*R4+S4*T4+U4*V4+W4*X4+Y4*Z4+AA4*AB4+AC4*AD4","v":0}]
["19.2.",null,null,null,null,0]
["19.3.",null,null,null,null,0]
["19.4.",null,null,null,null,0]
["19.5.",null,null,null,null,0]
["19.6.",null,null,null,null,0]
["19.7.",null,null,null,null,0]
["19.8.",null,null,null,null,0]
["19.9.",null,null,null,null,0]
["19.10.",null,null,null,null,0]
[]
[]
["ИТОГО",{"$f":"SUM(F:F)","v":0}]
[]
[null,"ВЕРНУТЬСЯ К ПЕРЕЧНЮ"]

{"sheet":"20","index":21,"n_rows":18,"n_cols":30,"rows_kept":18,"cut":false,"hidden":false,"merged":[[0,10,0,11],[0,0,1,0],[0,1,1,1],[0,5,1,5],[0,6,0,7],[0,8,0,9],[0,2,1,2],[0,3,1,3],[0,4,1,4],[0,24,0,25],[0,26,0,27],[0,28,0,29],[0,12,0,13],[0,14,0,15],[0,16,0,17],[0,18,0,19],[0,20,0,21],[0,22,0,23]]}
[20,"Нанесение на производственное оборудование, элементы конструкций и на другие объекты сигнальных цветов и знаков безопасности","Ответственные","Ожидаемый результат","Источник финансирования","ИТОГО","Январь",null,"Февраль ",null,"Март",null,"Апрель",null,"Май",null,"Июнь",null,"Июль",null,"Август",null,"Сентябрь",null,"Октябрь",null,"Ноябрь",null,"Декабрь"]
[null,null,null,null,null,null,"кол-во","стоимость","кол-во","стоимость","кол-во","стоимость","кол-во","стоимость","кол-во","стоимость","кол-во","стоимость","кол-во","стоимость","кол-во","стоимость","кол-во","стоимость","кол-во","стоимость","кол-во","стоимость","кол-во","стоимость"]
["Столбец1","Столбец2","Столбец28","Столбец29","Столбец30","Столбец3","Столбец4","Столбец5","Столбец6","Столбец7","Столбец8","Столбец9","Столбец10","Столбец11","Столбец12","Столбец13","Столбец14","Столбец15","Столбец16","Столбец17","Столбец18","Столбец19","Столбец20","Столбец21","Столбец22","Столбец23","Столбец24","Столбец25","Столбец26","Столбец27"]
[{"$f":"$A$1&\".\"&ROW()-3&\".\"","v":"20.1."},"Нанесение на производственное оборудование, элементы конструкций и на другие объекты сигнальных цветов и знаков безопасности",null,null,null,{"$f":"G4*H4+I4*J4+K4*L4+M4*N4+O4*P4+Q4*R4+S4*T4+U4*V4+W4*X4+Y4*Z4+AA4*AB4+AC4*AD4","v":0}]
["20.2.",null,null,null,null,0]
["20.3.",null,null,null,null,0]
["20.4.",null,null,null,null,0]
["20.5.",null,null,null,null,0]
["20.6.",null,null,null,null,0]
["20.7.",null,null,null,null,0]
["20.8.",null,null,null,null,0]
["20.9.",null,null,null,null,0]
["20.10.",null,null,null,null,0]
[]
[]
["ИТОГО",{"$f":"SUM(F:F)","v":0}]
[]
[null,"ВЕРНУТЬСЯ К ПЕРЕЧНЮ"]

{"sheet":"21","index":22,"n_rows":18,"n_cols":30,"rows_kept":18,"cut":false,"hidden":false,"merged":[[0,10,0,11],[0,0,1,0],[0,1,1,1],[0,5,1,5],[0,6,0,7],[0,8,0,9],[0,2,1,2],[0,3,1,3],[0,4,1,4],[0,24,0,25],[0,26,0,27],[0,28,0,29],[0,12,0,13],[0,14,0,15],[0,16,0,17],[0,18,0,19],[0,20,0,21],[0,22,0,23]]}
[21,"Устройство защитных ограждений от воздействия движущихся частей и разлетающихся предметов","Ответственные","Ожидаемый результат","Источник финансирования","ИТОГО","Январь",null,"Февраль ",null,"Март",null,"Апрель",null,"Май",null,"Июнь",null,"Июль",null,"Август",null,"Сентябрь",null,"Октябрь",null,"Ноябрь",null,"Декабрь"]
[null,null,null,null,null,null,"кол-во","стоимость","кол-во","стоимость","кол-во","стоимость","кол-во","стоимость","кол-во","стоимость","кол-во","стоимость","кол-во","стоимость","кол-во","стоимость","кол-во","стоимость","кол-во","стоимость","кол-во","стоимость","кол-во","стоимость"]
["Столбец1","Столбец2","Столбец28","Столбец29","Столбец30","Столбец3","Столбец4","Столбец5","Столбец6","Столбец7","Столбец8","Столбец9","Столбец10","Столбец11","Столбец12","Столбец13","Столбец14","Столбец15","Столбец16","Столбец17","Столбец18","Столбец19","Столбец20","Столбец21","Столбец22","Столбец23","Столбец24","Столбец25","Столбец26","Столбец27"]
[{"$f":"$A$1&\".\"&ROW()-3&\".\"","v":"21.1."},"Устройство защитных ограждений от воздействия движущихся частей и разлетающихся предметов",null,null,null,{"$f":"G4*H4+I4*J4+K4*L4+M4*N4+O4*P4+Q4*R4+S4*T4+U4*V4+W4*X4+Y4*Z4+AA4*AB4+AC4*AD4","v":0}]
["21.2.",null,null,null,null,0]
["21.3.",null,null,null,null,0]
["21.4.",null,null,null,null,0]
["21.5.",null,null,null,null,0]
["21.6.",null,null,null,null,0]
["21.7.",null,null,null,null,0]
["21.8.",null,null,null,null,0]
["21.9.",null,null,null,null,0]
["21.10.",null,null,null,null,0]
[]
[]
["ИТОГО",{"$f":"SUM(F:F)","v":0}]
[]
[null,"ВЕРНУТЬСЯ К ПЕРЕЧНЮ"]

{"sheet":"22","index":23,"n_rows":18,"n_cols":30,"rows_kept":18,"cut":false,"hidden":false,"merged":[[0,10,0,11],[0,0,1,0],[0,1,1,1],[0,5,1,5],[0,6,0,7],[0,8,0,9],[0,2,1,2],[0,3,1,3],[0,4,1,4],[0,24,0,25],[0,26,0,27],[0,28,0,29],[0,12,0,13],[0,14,0,15],[0,16,0,17],[0,18,0,19],[0,20,0,21],[0,22,0,23]]}
[22,"Реконструкция и оснащение санитарно-бытовых помещений","Ответственные","Ожидаемый результат","Источник финансирования","ИТОГО","Январь",null,"Февраль ",null,"Март",null,"Апрель",null,"Май",null,"Июнь",null,"Июль",null,"Август",null,"Сентябрь",null,"Октябрь",null,"Ноябрь",null,"Декабрь"]
[null,null,null,null,null,null,"кол-во","стоимость","кол-во","стоимость","кол-во","стоимость","кол-во","стоимость","кол-во","стоимость","кол-во","стоимость","кол-во","стоимость","кол-во","стоимость","кол-во","стоимость","кол-во","стоимость","кол-во","стоимость","кол-во","стоимость"]
["Столбец1","Столбец2","Столбец28","Столбец29","Столбец30","Столбец3","Столбец4","Столбец5","Столбец6","Столбец7","Столбец8","Столбец9","Столбец10","Столбец11","Столбец12","Столбец13","Столбец14","Столбец15","Столбец16","Столбец17","Столбец18","Столбец19","Столбец20","Столбец21","Столбец22","Столбец23","Столбец24","Столбец25","Столбец26","Столбец27"]
[{"$f":"$A$1&\".\"&ROW()-3&\".\"","v":"22.1."},"Реконструкция и оснащение санитарно-бытовых помещений",null,null,null,{"$f":"G4*H4+I4*J4+K4*L4+M4*N4+O4*P4+Q4*R4+S4*T4+U4*V4+W4*X4+Y4*Z4+AA4*AB4+AC4*AD4","v":0}]
["22.2.",null,null,null,null,0]
["22.3.",null,null,null,null,0]
["22.4.",null,null,null,null,0]
["22.5.",null,null,null,null,0]
["22.6.",null,null,null,null,0]
["22.7.",null,null,null,null,0]
["22.8.",null,null,null,null,0]
["22.9.",null,null,null,null,0]
["22.10.",null,null,null,null,0]
[]
[]
["ИТОГО",{"$f":"SUM(F:F)","v":0}]
[]
[null,"ВЕРНУТЬСЯ К ПЕРЕЧНЮ"]

{"sheet":"23","index":24,"n_rows":18,"n_cols":30,"rows_kept":18,"cut":false,"hidden":false,"merged":[[0,10,0,11],[0,0,1,0],[0,1,1,1],[0,5,1,5],[0,6,0,7],[0,8,0,9],[0,2,1,2],[0,3,1,3],[0,4,1,4],[0,24,0,25],[0,26,0,27],[0,28,0,29],[0,12,0,13],[0,14,0,15],[0,16,0,17],[0,18,0,19],[0,20,0,21],[0,22,0,23]]}
[23,"Устройство или реконструкция мест отдыха, обогрева работников при работах на открытом воздухе, укрытий от солнечных лучей и атмосферных осадков ","Ответственные","Ожидаемый результат","Источник финансирования","ИТОГО","Январь",null,"Февраль ",null,"Март",null,"Апрель",null,"Май",null,"Июнь",null,"Июль",null,"Август",null,"Сентябрь",null,"Октябрь",null,"Ноябрь",null,"Декабрь"]
[null,null,null,null,null,null,"кол-во","стоимость","кол-во","стоимость","кол-во","стоимость","кол-во","стоимость","кол-во","стоимость","кол-во","стоимость","кол-во","стоимость","кол-во","стоимость","кол-во","стоимость","кол-во","стоимость","кол-во","стоимость","кол-во","стоимость"]
["Столбец1","Столбец2","Столбец28","Столбец29","Столбец30","Столбец3","Столбец4","Столбец5","Столбец6","Столбец7","Столбец8","Столбец9","Столбец10","Столбец11","Столбец12","Столбец13","Столбец14","Столбец15","Столбец16","Столбец17","Столбец18","Столбец19","Столбец20","Столбец21","Столбец22","Столбец23","Столбец24","Столбец25","Столбец26","Столбец27"]
[{"$f":"$A$1&\".\"&ROW()-3&\".\"","v":"23.1."},"Устройство мест отдыха",null,null,null,{"$f":"G4*H4+I4*J4+K4*L4+M4*N4+O4*P4+Q4*R4+S4*T4+U4*V4+W4*X4+Y4*Z4+AA4*AB4+AC4*AD4","v":0}]
["23.2.","Реконструкция мест отдыха",null,null,null,0]
["23.3.","Организация мест для обогрева работников ",null,null,null,0]
["23.4.","Организация укрытий от сонечных лучей и атмосферных осадков ",null,null,null,0]
["23.5.",null,null,null,null,0]
["23.6.",null,null,null,null,0]
["23.7.",null,null,null,null,0]
["23.8.",null,null,null,null,0]
["23.9.",null,null,null,null,0]
["23.10.",null,null,null,null,0]
[]
[]
["ИТОГО",{"$f":"SUM(F:F)","v":0}]
[]
[null,"ВЕРНУТЬСЯ К ПЕРЕЧНЮ"]

{"sheet":"24","index":25,"n_rows":18,"n_cols":30,"rows_kept":18,"cut":false,"hidden":false,"merged":[[0,10,0,11],[0,0,1,0],[0,1,1,1],[0,5,1,5],[0,6,0,7],[0,8,0,9],[0,2,1,2],[0,3,1,3],[0,4,1,4],[0,24,0,25],[0,26,0,27],[0,28,0,29],[0,12,0,13],[0,14,0,15],[0,16,0,17],[0,18,0,19],[0,20,0,21],[0,22,0,23]]}
[24,"Проектирование и обустройство учебно-тренировочных полигонов для отработки практических навыков безопасного производства работ","Ответственные","Ожидаемый результат","Источник финансирования","ИТОГО","Январь",null,"Февраль ",null,"Март",null,"Апрель",null,"Май",null,"Июнь",null,"Июль",null,"Август",null,"Сентябрь",null,"Октябрь",null,"Ноябрь",null,"Декабрь"]
[null,null,null,null,null,null,"кол-во","стоимость","кол-во","стоимость","кол-во","стоимость","кол-во","стоимость","кол-во","стоимость","кол-во","стоимость","кол-во","стоимость","кол-во","стоимость","кол-во","стоимость","кол-во","стоимость","кол-во","стоимость","кол-во","стоимость"]
["Столбец1","Столбец2","Столбец28","Столбец29","Столбец30","Столбец3","Столбец4","Столбец5","Столбец6","Столбец7","Столбец8","Столбец9","Столбец10","Столбец11","Столбец12","Столбец13","Столбец14","Столбец15","Столбец16","Столбец17","Столбец18","Столбец19","Столбец20","Столбец21","Столбец22","Столбец23","Столбец24","Столбец25","Столбец26","Столбец27"]
[{"$f":"$A$1&\".\"&ROW()-3&\".\"","v":"24.1."},"Проектирование учебно-тренировочных полигонов ",null,null,null,{"$f":"G4*H4+I4*J4+K4*L4+M4*N4+O4*P4+Q4*R4+S4*T4+U4*V4+W4*X4+Y4*Z4+AA4*AB4+AC4*AD4","v":0}]
["24.2.","Обустройство учебно-тренировчных полигонов",null,null,null,0]
["24.3.",null,null,null,null,0]
["24.4.",null,null,null,null,0]
["24.5.",null,null,null,null,0]
["24.6.",null,null,null,null,0]
["24.7.",null,null,null,null,0]
["24.8.",null,null,null,null,0]
["24.9.",null,null,null,null,0]
["24.10.",null,null,null,null,0]
[]
[]
["ИТОГО",{"$f":"SUM(F:F)","v":0}]
[]
[null,"ВЕРНУТЬСЯ К ПЕРЕЧНЮ"]

{"sheet":"25","index":26,"n_rows":25,"n_cols":30,"rows_kept":25,"cut":false,"hidden":false,"merged":[[0,10,0,11],[0,0,1,0],[0,1,1,1],[0,5,1,5],[0,6,0,7],[0,8,0,9],[0,2,1,2],[0,3,1,3],[0,4,1,4],[0,24,0,25],[0,26,0,27],[0,28,0,29],[0,12,0,13],[0,14,0,15],[0,16,0,17],[0,18,0,19],[0,20,0,21],[0,22,0,23]]}
[25,"Приобретение оборудования, защитных устройств, приспособлений, автоматизация технологических процессов и пр. ","Ответственные","Ожидаемый результат","Источник финансирования","ИТОГО","Январь",null,"Февраль ",null,"Март",null,"Апрель",null,"Май",null,"Июнь",null,"Июль",null,"Август",null,"Сентябрь",null,"Октябрь",null,"Ноябрь",null,"Декабрь"]
[null,null,null,null,null,null,"кол-во","стоимость","кол-во","стоимость","кол-во","стоимость","кол-во","стоимость","кол-во","стоимость","кол-во","стоимость","кол-во","стоимость","кол-во","стоимость","кол-во","стоимость","кол-во","стоимость","кол-во","стоимость","кол-во","стоимость"]
["Столбец1","Столбец2","Столбец28","Столбец29","Столбец30","Столбец3","Столбец4","Столбец5","Столбец6","Столбец7","Столбец8","Столбец9","Столбец10","Столбец11","Столбец12","Столбец13","Столбец14","Столбец15","Столбец16","Столбец17","Столбец18","Столбец19","Столбец20","Столбец21","Столбец22","Столбец23","Столбец24","Столбец25","Столбец26","Столбец27"]
[{"$f":"$A$1&\".\"&ROW()-3&\".\"","v":"25.1."},"Приобретение и монтаж средств сигнализации о нарушении нормального функционирования производственного оборудования, средств аварийной остановки, а также устройств, позволяющих исключить возникновение опасных ситуаций при полном или частичном прекращении энергоснабжения и последующем его восстановлении",null,null,null,{"$f":"G4*H4+I4*J4+K4*L4+M4*N4+O4*P4+Q4*R4+S4*T4+U4*V4+W4*X4+Y4*Z4+AA4*AB4+AC4*AD4","v":0}]
["25.2.","Приобретение приборов, устройств и оборудования для обеспечения безопасности работников или контроля за безопасным ведением работ, в том числе на подземных работах",null,null,null,0]
["25.3.","Приобретение приборов, устройств и оборудования для обучения безопасному ведению работ и действиям при аварии или инциденте на ОПО",null,null,null,0]
["25.4.","Приобретение приборов, устройств и оборудования для дистанционной видео- и аудиофиксации инструктажей, обучения и иных форм подготовки работников по безопасному производству работ и хранения результатов фиксации",null,null,null,0]
["25.5.","Внедрение систем автоматического и дистанционного управления и регулирования производственным оборудованием, технологическими процессами, подъемными и транспортными устройствами",null,null,null,0]
["25.6.","Внедрение систем автоматического контроля уровней опасных и вредных производственных факторов на рабочих местах",null,null,null,0]
["25.7.","Внедрение или модернизация технических устройств для защиты работников от поражения электрическим током",null,null,null,0]
["25.8.","Установка предохранительных, защитных и сигнализирующих устройств для  безопасной эксплуатации и аварийной защиты паровых, водяных, газовых, кислотных, щелочных, расплавных и других производственных коммуникаций, оборудования и сооружений",null,null,null,0]
["25.9.","Механизация и автоматизация технологических процессов, связанных с хранением, перемещением, заполнением и опорожнением передвижных и стационарных резервуаров с ядовитыми, агрессивными, легковоспламеняющимися и горючими жидкостями",null,null,null,0]
["25.10.","Механизация работ при складировании и транспортировании сырья, оптовой продукции и отходов производства",null,null,null,{"$f":"G13*H13+I13*J13+K13*L13+M13*N13+O13*P13+Q13*R13+S13*T13+U13*V13+W13*X13+Y13*Z13+AA13*AB13+AC13*AD13","v":0}]
["25.11.","Механизация уборки производственных помещений, своевременное удаление и обезвреживание отходов производства, являющихся источниками опасных и вредных производственных факторов, очистки воздуховодов и вентиляционных установок, осветительной арматуры, окон, фрамуг, световых фонарей",null,null,null,0]
["25.12.","Устройство тротуаров, переходов, тоннелей, галерей на территории организации в целях обеспечения безопасности работников",null,null,null,0]
["25.13.","Перепланировка размещения производственного оборудования, организация рабочих мест с целью обеспечения безопасности работников",null,null,null,0]
["25.14.","Механизация работ при складировании и транспортировании сырья, оптовой продукции и отходов производства",null,null,null,0]
["25.15.",null,null,null,null,0]
["25.16.",null,null,null,null,0]
["25.17.",null,null,null,null,0]
[]
[]
["ИТОГО",{"$f":"SUM(F:F)","v":0}]
[]
[null,"ВЕРНУТЬСЯ К ПЕРЕЧНЮ"]

{"sheet":"26","index":27,"n_rows":18,"n_cols":30,"rows_kept":18,"cut":false,"hidden":false,"merged":[[0,10,0,11],[0,0,1,0],[0,1,1,1],[0,5,1,5],[0,6,0,7],[0,8,0,9],[0,2,1,2],[0,3,1,3],[0,4,1,4],[0,24,0,25],[0,26,0,27],[0,28,0,29],[0,12,0,13],[0,14,0,15],[0,16,0,17],[0,18,0,19],[0,20,0,21],[0,22,0,23]]}
[26,"Организация мероприятий по развитию физической культуры и спорта в коллективе","Ответственные","Ожидаемый результат","Источник финансирования","ИТОГО","Январь",null,"Февраль ",null,"Март",null,"Апрель",null,"Май",null,"Июнь",null,"Июль",null,"Август",null,"Сентябрь",null,"Октябрь",null,"Ноябрь",null,"Декабрь"]
[null,null,null,null,null,null,"кол-во","стоимость","кол-во","стоимость","кол-во","стоимость","кол-во","стоимость","кол-во","стоимость","кол-во","стоимость","кол-во","стоимость","кол-во","стоимость","кол-во","стоимость","кол-во","стоимость","кол-во","стоимость","кол-во","стоимость"]
["Столбец1","Столбец2","Столбец28","Столбец29","Столбец30","Столбец3","Столбец4","Столбец5","Столбец6","Столбец7","Столбец8","Столбец9","Столбец10","Столбец11","Столбец12","Столбец13","Столбец14","Столбец15","Столбец16","Столбец17","Столбец18","Столбец19","Столбец20","Столбец21","Столбец22","Столбец23","Столбец24","Столбец25","Столбец26","Столбец27"]
[{"$f":"$A$1&\".\"&ROW()-3&\".\"","v":"26.1."},"Компенсация работникам оплаты занятий спортом в клубах и секциях;",null,null,null,{"$f":"G4*H4+I4*J4+K4*L4+M4*N4+O4*P4+Q4*R4+S4*T4+U4*V4+W4*X4+Y4*Z4+AA4*AB4+AC4*AD4","v":0}]
["26.2.","Организация и проведение физкультурных и спортивных мероприятий",null,null,null,0]
["26.3.","Организация и проведение физкультурно-оздоровительных мероприятий ",null,null,null,0]
["26.4.","Приобретение, содержание и обновление спортивного инвентаря",null,null,null,0]
["26.5.","Устройство или реконструкция помещений и площадок для занятий спортом",null,null,null,0]
["26.6.","Создание и развитие физкультурно-спортивных клубов, организованных в целях массового привлечения граждан к занятиям физической культурой и спортом по месту работы",null,null,null,0]
["26.7.",null,null,null,null,0]
["26.8.",null,null,null,null,0]
["26.9.",null,null,null,null,0]
["26.10.",null,null,null,null,0]
[]
[]
["ИТОГО",{"$f":"SUM(F:F)","v":0}]
[]
[null,"ВЕРНУТЬСЯ К ПЕРЕЧНЮ"]

{"sheet":"27","index":28,"n_rows":18,"n_cols":30,"rows_kept":18,"cut":false,"hidden":false,"merged":[[0,10,0,11],[0,0,1,0],[0,1,1,1],[0,5,1,5],[0,6,0,7],[0,8,0,9],[0,2,1,2],[0,3,1,3],[0,4,1,4],[0,24,0,25],[0,26,0,27],[0,28,0,29],[0,12,0,13],[0,14,0,15],[0,16,0,17],[0,18,0,19],[0,20,0,21],[0,22,0,23]]}
[27,"Оценка профессиональных рисков","Ответственные","Ожидаемый результат","Источник финансирования","ИТОГО","Январь",null,"Февраль ",null,"Март",null,"Апрель",null,"Май",null,"Июнь",null,"Июль",null,"Август",null,"Сентябрь",null,"Октябрь",null,"Ноябрь",null,"Декабрь"]
[null,null,null,null,null,null,"кол-во","стоимость","кол-во","стоимость","кол-во","стоимость","кол-во","стоимость","кол-во","стоимость","кол-во","стоимость","кол-во","стоимость","кол-во","стоимость","кол-во","стоимость","кол-во","стоимость","кол-во","стоимость","кол-во","стоимость"]
["Столбец1","Столбец2","Столбец28","Столбец29","Столбец30","Столбец3","Столбец4","Столбец5","Столбец6","Столбец7","Столбец8","Столбец9","Столбец10","Столбец11","Столбец12","Столбец13","Столбец14","Столбец15","Столбец16","Столбец17","Столбец18","Столбец19","Столбец20","Столбец21","Столбец22","Столбец23","Столбец24","Столбец25","Столбец26","Столбец27"]
[{"$f":"$A$1&\".\"&ROW()-3&\".\"","v":"27.1."},"Услуги сторонней организации по проведению оценки профессиональных рисков",null,null,null,{"$f":"G4*H4+I4*J4+K4*L4+M4*N4+O4*P4+Q4*R4+S4*T4+U4*V4+W4*X4+Y4*Z4+AA4*AB4+AC4*AD4","v":0}]
[{"$f":"$A$1&\".\"&ROW()-3&\".\"","v":"27.2."},"Покупка и обслуживание инструментов и приборов для самостоятельного проведения оценки профессиональных рисков",null,null,null,0]
["27.3.",null,null,null,null,0]
["27.4.",null,null,null,null,0]
["27.5.",null,null,null,null,0]
["27.6.",null,null,null,null,0]
["27.7.",null,null,null,null,0]
["27.8.",null,null,null,null,0]
["27.9.",null,null,null,null,0]
["27.10.",null,null,null,null,0]
[]
[]
["ИТОГО",{"$f":"SUM(F:F)","v":0}]
[]
[null,"ВЕРНУТЬСЯ К ПЕРЕЧНЮ"]

{"sheet":"28","index":29,"n_rows":18,"n_cols":30,"rows_kept":18,"cut":false,"hidden":false,"merged":[[0,10,0,11],[0,0,1,0],[0,1,1,1],[0,5,1,5],[0,6,0,7],[0,8,0,9],[0,2,1,2],[0,3,1,3],[0,4,1,4],[0,24,0,25],[0,26,0,27],[0,28,0,29],[0,12,0,13],[0,14,0,15],[0,16,0,17],[0,18,0,19],[0,20,0,21],[0,22,0,23]]}
[28,"Внедрение систем автоматического и дистанционного управления и регулирования производственным оборудованием, технологическими процессами, подъемными и транспортными устройствами","Ответственные","Ожидаемый результат","Источник финансирования","ИТОГО","Январь",null,"Февраль ",null,"Март",null,"Апрель",null,"Май",null,"Июнь",null,"Июль",null,"Август",null,"Сентябрь",null,"Октябрь",null,"Ноябрь",null,"Декабрь"]
[null,null,null,null,null,null,"кол-во","стоимость","кол-во","стоимость","кол-во","стоимость","кол-во","стоимость","кол-во","стоимость","кол-во","стоимость","кол-во","стоимость","кол-во","стоимость","кол-во","стоимость","кол-во","стоимость","кол-во","стоимость","кол-во","стоимость"]
["Столбец1","Столбец2","Столбец28","Столбец29","Столбец30","Столбец3","Столбец4","Столбец5","Столбец6","Столбец7","Столбец8","Столбец9","Столбец10","Столбец11","Столбец12","Столбец13","Столбец14","Столбец15","Столбец16","Столбец17","Столбец18","Столбец19","Столбец20","Столбец21","Столбец22","Столбец23","Столбец24","Столбец25","Столбец26","Столбец27"]
[{"$f":"$A$1&\".\"&ROW()-3&\".\"","v":"28.1."},"Закупка автоматических систем",null,null,null,{"$f":"G4*H4+I4*J4+K4*L4+M4*N4+O4*P4+Q4*R4+S4*T4+U4*V4+W4*X4+Y4*Z4+AA4*AB4+AC4*AD4","v":4000},1,4000]
["28.2.","Установка автоматических систем",null,null,null,0]
["28.3.",null,null,null,null,0]
["28.4.",null,null,null,null,0]
["28.5.",null,null,null,null,0]
["28.6.",null,null,null,null,0]
["28.7.",null,null,null,null,0]
["28.8.",null,null,null,null,0]
["28.9.",null,null,null,null,0]
["28.10.",null,null,null,null,0]
[]
[]
["ИТОГО",{"$f":"SUM(F:F)","v":4000}]
[]
[null,"ВЕРНУТЬСЯ К ПЕРЕЧНЮ"]

{"sheet":"29","index":30,"n_rows":18,"n_cols":30,"rows_kept":18,"cut":false,"hidden":false,"merged":[[0,10,0,11],[0,0,1,0],[0,1,1,1],[0,5,1,5],[0,6,0,7],[0,8,0,9],[0,2,1,2],[0,3,1,3],[0,4,1,4],[0,24,0,25],[0,26,0,27],[0,28,0,29],[0,12,0,13],[0,14,0,15],[0,16,0,17],[0,18,0,19],[0,20,0,21],[0,22,0,23]]}
[29,"Приобретение и монтаж средств сигнализации, средств аварийной остановки, а также устройств, позволяющих исключить возникновение опасных ситуаций ","Ответственные","Ожидаемый результат","Источник финансирования","ИТОГО","Январь",null,"Февраль ",null,"Март",null,"Апрель",null,"Май",null,"Июнь",null,"Июль",null,"Август",null,"Сентябрь",null,"Октябрь",null,"Ноябрь",null,"Декабрь"]
[null,null,null,null,null,null,"кол-во","стоимость","кол-во","стоимость","кол-во","стоимость","кол-во","стоимость","кол-во","стоимость","кол-во","стоимость","кол-во","стоимость","кол-во","стоимость","кол-во","стоимость","кол-во","стоимость","кол-во","стоимость","кол-во","стоимость"]
["Столбец1","Столбец2","Столбец28","Столбец29","Столбец30","Столбец3","Столбец4","Столбец5","Столбец6","Столбец7","Столбец8","Столбец9","Столбец10","Столбец11","Столбец12","Столбец13","Столбец14","Столбец15","Столбец16","Столбец17","Столбец18","Столбец19","Столбец20","Столбец21","Столбец22","Столбец23","Столбец24","Столбец25","Столбец26","Столбец27"]
[{"$f":"$A$1&\".\"&ROW()-3&\".\"","v":"29.1."},"Приобретение сигнализации",null,null,null,{"$f":"G4*H4+I4*J4+K4*L4+M4*N4+O4*P4+Q4*R4+S4*T4+U4*V4+W4*X4+Y4*Z4+AA4*AB4+AC4*AD4","v":0}]
["29.2.","Установка сигнализации",null,null,null,0]
["29.3.",null,null,null,null,0]
["29.4.",null,null,null,null,0]
["29.5.",null,null,null,null,0]
["29.6.",null,null,null,null,0]
["29.7.",null,null,null,null,0]
["29.8.",null,null,null,null,0]
["29.9.",null,null,null,null,0]
["29.10.",null,null,null,null,0]
[]
[]
["ИТОГО",{"$f":"SUM(F:F)","v":0}]
[]
[null,"ВЕРНУТЬСЯ К ПЕРЕЧНЮ"]

{"sheet":"30","index":31,"n_rows":18,"n_cols":30,"rows_kept":18,"cut":false,"hidden":false,"merged":[[0,10,0,11],[0,0,1,0],[0,1,1,1],[0,5,1,5],[0,6,0,7],[0,8,0,9],[0,2,1,2],[0,3,1,3],[0,4,1,4],[0,24,0,25],[0,26,0,27],[0,28,0,29],[0,12,0,13],[0,14,0,15],[0,16,0,17],[0,18,0,19],[0,20,0,21],[0,22,0,23]]}
[30,"Внедрение и модернизация технических устройств и приспособлений, обеспечивающих защиту работников от поражения электрическим током","Ответственные","Ожидаемый результат","Источник финансирования","ИТОГО","Январь",null,"Февраль ",null,"Март",null,"Апрель",null,"Май",null,"Июнь",null,"Июль",null,"Август",null,"Сентябрь",null,"Октябрь",null,"Ноябрь",null,"Декабрь"]
[null,null,null,null,null,null,"кол-во","стоимость","кол-во","стоимость","кол-во","стоимость","кол-во","стоимость","кол-во","стоимость","кол-во","стоимость","кол-во","стоимость","кол-во","стоимость","кол-во","стоимость","кол-во","стоимость","кол-во","стоимость","кол-во","стоимость"]
["Столбец1","Столбец2","Столбец28","Столбец29","Столбец30","Столбец3","Столбец4","Столбец5","Столбец6","Столбец7","Столбец8","Столбец9","Столбец10","Столбец11","Столбец12","Столбец13","Столбец14","Столбец15","Столбец16","Столбец17","Столбец18","Столбец19","Столбец20","Столбец21","Столбец22","Столбец23","Столбец24","Столбец25","Столбец26","Столбец27"]
[{"$f":"$A$1&\".\"&ROW()-3&\".\"","v":"30.1."},"Установка устройств защитного отключения ",null,null,null,{"$f":"G4*H4+I4*J4+K4*L4+M4*N4+O4*P4+Q4*R4+S4*T4+U4*V4+W4*X4+Y4*Z4+AA4*AB4+AC4*AD4","v":0}]
["30.2.","Замена старого электрооборудования",null,null,null,0]
["30.3.","Установка автоматических выключателей",null,null,null,0]
["30.4.",null,null,null,null,0]
["30.5.",null,null,null,null,0]
["30.6.",null,null,null,null,0]
["30.7.",null,null,null,null,0]
["30.8.",null,null,null,null,0]
["30.9.",null,null,null,null,0]
["30.10.",null,null,null,null,0]
[]
[]
["ИТОГО",{"$f":"SUM(F:F)","v":0}]
[]
[null,"ВЕРНУТЬСЯ К ПЕРЕЧНЮ"]

{"sheet":"31","index":32,"n_rows":18,"n_cols":30,"rows_kept":18,"cut":false,"hidden":false,"merged":[[0,10,0,11],[0,0,1,0],[0,1,1,1],[0,5,1,5],[0,6,0,7],[0,8,0,9],[0,2,1,2],[0,3,1,3],[0,4,1,4],[0,24,0,25],[0,26,0,27],[0,28,0,29],[0,12,0,13],[0,14,0,15],[0,16,0,17],[0,18,0,19],[0,20,0,21],[0,22,0,23]]}
[31,"Установка предохранительных, защитных и сигнализирующих устройств для безопасной эксплуатации и аварийной защиты производственных коммуникаций, оборудования и сооружений","Ответственные","Ожидаемый результат","Источник финансирования","ИТОГО","Январь",null,"Февраль ",null,"Март",null,"Апрель",null,"Май",null,"Июнь",null,"Июль",null,"Август",null,"Сентябрь",null,"Октябрь",null,"Ноябрь",null,"Декабрь"]
[null,null,null,null,null,null,"кол-во","стоимость","кол-во","стоимость","кол-во","стоимость","кол-во","стоимость","кол-во","стоимость","кол-во","стоимость","кол-во","стоимость","кол-во","стоимость","кол-во","стоимость","кол-во","стоимость","кол-во","стоимость","кол-во","стоимость"]
["Столбец1","Столбец2","Столбец28","Столбец29","Столбец30","Столбец3","Столбец4","Столбец5","Столбец6","Столбец7","Столбец8","Столбец9","Столбец10","Столбец11","Столбец12","Столбец13","Столбец14","Столбец15","Столбец16","Столбец17","Столбец18","Столбец19","Столбец20","Столбец21","Столбец22","Столбец23","Столбец24","Столбец25","Столбец26","Столбец27"]
[{"$f":"$A$1&\".\"&ROW()-3&\".\"","v":"31.1."},"Установка предохранительных клапанов",null,null,null,{"$f":"G4*H4+I4*J4+K4*L4+M4*N4+O4*P4+Q4*R4+S4*T4+U4*V4+W4*X4+Y4*Z4+AA4*AB4+AC4*AD4","v":0}]
["31.2.","Установка ограждений и барьеров ",null,null,null,0]
["31.3.","Оснащение оборудования аварийными выключателями",null,null,null,0]
["31.4.",null,null,null,null,0]
["31.5.",null,null,null,null,0]
["31.6.",null,null,null,null,0]
["31.7.",null,null,null,null,0]
["31.8.",null,null,null,null,0]
["31.9.",null,null,null,null,0]
["31.10.",null,null,null,null,0]
[]
[]
["ИТОГО",{"$f":"SUM(F:F)","v":0}]
[]
[null,"ВЕРНУТЬСЯ К ПЕРЕЧНЮ"]

{"sheet":"32","index":33,"n_rows":18,"n_cols":30,"rows_kept":18,"cut":false,"hidden":false,"merged":[[0,10,0,11],[0,0,1,0],[0,1,1,1],[0,5,1,5],[0,6,0,7],[0,8,0,9],[0,2,1,2],[0,3,1,3],[0,4,1,4],[0,24,0,25],[0,26,0,27],[0,28,0,29],[0,12,0,13],[0,14,0,15],[0,16,0,17],[0,18,0,19],[0,20,0,21],[0,22,0,23]]}
[32,"Механизация и автоматизация технологических операций, связанных с хранением, перемещением, заполнением и опорожнением передвижных и стационарных резервуаров с ядовитыми, агрессивными, легковоспламеняющимися и горючими жидкостями","Ответственные","Ожидаемый результат","Источник финансирования","ИТОГО","Январь",null,"Февраль ",null,"Март",null,"Апрель",null,"Май",null,"Июнь",null,"Июль",null,"Август",null,"Сентябрь",null,"Октябрь",null,"Ноябрь",null,"Декабрь"]
[null,null,null,null,null,null,"кол-во","стоимость","кол-во","стоимость","кол-во","стоимость","кол-во","стоимость","кол-во","стоимость","кол-во","стоимость","кол-во","стоимость","кол-во","стоимость","кол-во","стоимость","кол-во","стоимость","кол-во","стоимость","кол-во","стоимость"]
["Столбец1","Столбец2","Столбец28","Столбец29","Столбец30","Столбец3","Столбец4","Столбец5","Столбец6","Столбец7","Столбец8","Столбец9","Столбец10","Столбец11","Столбец12","Столбец13","Столбец14","Столбец15","Столбец16","Столбец17","Столбец18","Столбец19","Столбец20","Столбец21","Столбец22","Столбец23","Столбец24","Столбец25","Столбец26","Столбец27"]
[{"$f":"$A$1&\".\"&ROW()-3&\".\"","v":"32.1."},"Установка автоматизированных систем наполнения и опорожнения резервуаров ",null,null,null,{"$f":"G4*H4+I4*J4+K4*L4+M4*N4+O4*P4+Q4*R4+S4*T4+U4*V4+W4*X4+Y4*Z4+AA4*AB4+AC4*AD4","v":0}]
["32.2.","Установка герметичных соединений и механизированных шлангов",null,null,null,0]
["32.3.",null,null,null,null,0]
["32.4.",null,null,null,null,0]
["32.5.",null,null,null,null,0]
["32.6.",null,null,null,null,0]
["32.7.",null,null,null,null,0]
["32.8.",null,null,null,null,0]
["32.9.",null,null,null,null,0]
["32.10.",null,null,null,null,0]
[]
[]
["ИТОГО",{"$f":"SUM(F:F)","v":0}]
[]
[null,"ВЕРНУТЬСЯ К ПЕРЕЧНЮ"]

{"sheet":"33","index":34,"n_rows":18,"n_cols":30,"rows_kept":18,"cut":false,"hidden":false,"merged":[[0,10,0,11],[0,0,1,0],[0,1,1,1],[0,5,1,5],[0,6,0,7],[0,8,0,9],[0,2,1,2],[0,3,1,3],[0,4,1,4],[0,24,0,25],[0,26,0,27],[0,28,0,29],[0,12,0,13],[0,14,0,15],[0,16,0,17],[0,18,0,19],[0,20,0,21],[0,22,0,23]]}
[33,"Механизация работ при складировании и транспортировании сырья, готовой продукции и отходов производства","Ответственные","Ожидаемый результат","Источник финансирования","ИТОГО","Январь",null,"Февраль ",null,"Март",null,"Апрель",null,"Май",null,"Июнь",null,"Июль",null,"Август",null,"Сентябрь",null,"Октябрь",null,"Ноябрь",null,"Декабрь"]
[null,null,null,null,null,null,"кол-во","стоимость","кол-во","стоимость","кол-во","стоимость","кол-во","стоимость","кол-во","стоимость","кол-во","стоимость","кол-во","стоимость","кол-во","стоимость","кол-во","стоимость","кол-во","стоимость","кол-во","стоимость","кол-во","стоимость"]
["Столбец1","Столбец2","Столбец28","Столбец29","Столбец30","Столбец3","Столбец4","Столбец5","Столбец6","Столбец7","Столбец8","Столбец9","Столбец10","Столбец11","Столбец12","Столбец13","Столбец14","Столбец15","Столбец16","Столбец17","Столбец18","Столбец19","Столбец20","Столбец21","Столбец22","Столбец23","Столбец24","Столбец25","Столбец26","Столбец27"]
[{"$f":"$A$1&\".\"&ROW()-3&\".\"","v":"33.1."},null,null,null,null,{"$f":"G4*H4+I4*J4+K4*L4+M4*N4+O4*P4+Q4*R4+S4*T4+U4*V4+W4*X4+Y4*Z4+AA4*AB4+AC4*AD4","v":0}]
["33.2.",null,null,null,null,0]
["33.3.",null,null,null,null,0]
["33.4.",null,null,null,null,0]
["33.5.",null,null,null,null,0]
["33.6.",null,null,null,null,0]
["33.7.",null,null,null,null,0]
["33.8.",null,null,null,null,0]
["33.9.",null,null,null,null,0]
["33.10.",null,null,null,null,0]
[]
[]
["ИТОГО",{"$f":"SUM(F:F)","v":0}]
[]
[null,"ВЕРНУТЬСЯ К ПЕРЕЧНЮ"]

{"sheet":"34","index":35,"n_rows":18,"n_cols":30,"rows_kept":18,"cut":false,"hidden":false,"merged":[[0,10,0,11],[0,0,1,0],[0,1,1,1],[0,5,1,5],[0,6,0,7],[0,8,0,9],[0,2,1,2],[0,3,1,3],[0,4,1,4],[0,24,0,25],[0,26,0,27],[0,28,0,29],[0,12,0,13],[0,14,0,15],[0,16,0,17],[0,18,0,19],[0,20,0,21],[0,22,0,23]]}
[34,"Механизация уборки производственных помещений, своевременное удаление и обезвреживание отходов производства","Ответственные","Ожидаемый результат","Источник финансирования","ИТОГО","Январь",null,"Февраль ",null,"Март",null,"Апрель",null,"Май",null,"Июнь",null,"Июль",null,"Август",null,"Сентябрь",null,"Октябрь",null,"Ноябрь",null,"Декабрь"]
[null,null,null,null,null,null,"кол-во","стоимость","кол-во","стоимость","кол-во","стоимость","кол-во","стоимость","кол-во","стоимость","кол-во","стоимость","кол-во","стоимость","кол-во","стоимость","кол-во","стоимость","кол-во","стоимость","кол-во","стоимость","кол-во","стоимость"]
["Столбец1","Столбец2","Столбец28","Столбец29","Столбец30","Столбец3","Столбец4","Столбец5","Столбец6","Столбец7","Столбец8","Столбец9","Столбец10","Столбец11","Столбец12","Столбец13","Столбец14","Столбец15","Столбец16","Столбец17","Столбец18","Столбец19","Столбец20","Столбец21","Столбец22","Столбец23","Столбец24","Столбец25","Столбец26","Столбец27"]
[{"$f":"$A$1&\".\"&ROW()-3&\".\"","v":"34.1."},null,null,null,null,{"$f":"G4*H4+I4*J4+K4*L4+M4*N4+O4*P4+Q4*R4+S4*T4+U4*V4+W4*X4+Y4*Z4+AA4*AB4+AC4*AD4","v":0}]
["34.2.",null,null,null,null,0]
["34.3.",null,null,null,null,0]
["34.4.",null,null,null,null,0]
["34.5.",null,null,null,null,0]
["34.6.",null,null,null,null,0]
["34.7.",null,null,null,null,0]
["34.8.",null,null,null,null,0]
["34.9.",null,null,null,null,0]
["34.10.",null,null,null,null,0]
[]
[]
["ИТОГО",{"$f":"SUM(F:F)","v":0}]
[]
[null,"ВЕРНУТЬСЯ К ПЕРЕЧНЮ"]

{"sheet":"35","index":36,"n_rows":18,"n_cols":30,"rows_kept":18,"cut":false,"hidden":false,"merged":[[0,10,0,11],[0,0,1,0],[0,1,1,1],[0,5,1,5],[0,6,0,7],[0,8,0,9],[0,2,1,2],[0,3,1,3],[0,4,1,4],[0,24,0,25],[0,26,0,27],[0,28,0,29],[0,12,0,13],[0,14,0,15],[0,16,0,17],[0,18,0,19],[0,20,0,21],[0,22,0,23]]}
[35,"Устройство и реконструкция отопительных и вентиляционных систем в производственных и бытовых помещениях, тепловых и воздушных завес, аспирационных и пылегазоулавливающих установок, установок дезинфекции, аэрирования, кондиционирования воздуха","Ответственные","Ожидаемый результат","Источник финансирования","ИТОГО","Январь",null,"Февраль ",null,"Март",null,"Апрель",null,"Май",null,"Июнь",null,"Июль",null,"Август",null,"Сентябрь",null,"Октябрь",null,"Ноябрь",null,"Декабрь"]
[null,null,null,null,null,null,"кол-во","стоимость","кол-во","стоимость","кол-во","стоимость","кол-во","стоимость","кол-во","стоимость","кол-во","стоимость","кол-во","стоимость","кол-во","стоимость","кол-во","стоимость","кол-во","стоимость","кол-во","стоимость","кол-во","стоимость"]
["Столбец1","Столбец2","Столбец28","Столбец29","Столбец30","Столбец3","Столбец4","Столбец5","Столбец6","Столбец7","Столбец8","Столбец9","Столбец10","Столбец11","Столбец12","Столбец13","Столбец14","Столбец15","Столбец16","Столбец17","Столбец18","Столбец19","Столбец20","Столбец21","Столбец22","Столбец23","Столбец24","Столбец25","Столбец26","Столбец27"]
[{"$f":"$A$1&\".\"&ROW()-3&\".\"","v":"35.1."},"Реконструкция отопительных систем в бытовых помещениях",null,null,null,{"$f":"G4*H4+I4*J4+K4*L4+M4*N4+O4*P4+Q4*R4+S4*T4+U4*V4+W4*X4+Y4*Z4+AA4*AB4+AC4*AD4","v":0}]
["35.2.","Реконструкция вентиляционных систем в бытовых помещениях",null,null,null,0]
["35.3.","Приобретение устройств кондиционирования воздуха",null,null,null,0]
["35.4.",null,null,null,null,0]
["35.5.",null,null,null,null,0]
["35.6.",null,null,null,null,0]
["35.7.",null,null,null,null,0]
["35.8.",null,null,null,null,0]
["35.9.",null,null,null,null,0]
["35.10.",null,null,null,null,0]
[]
[]
["ИТОГО",{"$f":"SUM(F:F)","v":0}]
[]
[null,"ВЕРНУТЬСЯ К ПЕРЕЧНЮ"]

{"sheet":"36","index":37,"n_rows":18,"n_cols":30,"rows_kept":18,"cut":false,"hidden":false,"merged":[[0,10,0,11],[0,0,1,0],[0,1,1,1],[0,5,1,5],[0,6,0,7],[0,8,0,9],[0,2,1,2],[0,3,1,3],[0,4,1,4],[0,24,0,25],[0,26,0,27],[0,28,0,29],[0,12,0,13],[0,14,0,15],[0,16,0,17],[0,18,0,19],[0,20,0,21],[0,22,0,23]]}
[36,"Обеспечение естественного и искусственного освещения на рабочих местах, в бытовых помещениях, местах прохода работников","Ответственные","Ожидаемый результат","Источник финансирования","ИТОГО","Январь",null,"Февраль ",null,"Март",null,"Апрель",null,"Май",null,"Июнь",null,"Июль",null,"Август",null,"Сентябрь",null,"Октябрь",null,"Ноябрь",null,"Декабрь"]
[null,null,null,null,null,null,"кол-во","стоимость","кол-во","стоимость","кол-во","стоимость","кол-во","стоимость","кол-во","стоимость","кол-во","стоимость","кол-во","стоимость","кол-во","стоимость","кол-во","стоимость","кол-во","стоимость","кол-во","стоимость","кол-во","стоимость"]
["Столбец1","Столбец2","Столбец28","Столбец29","Столбец30","Столбец3","Столбец4","Столбец5","Столбец6","Столбец7","Столбец8","Столбец9","Столбец10","Столбец11","Столбец12","Столбец13","Столбец14","Столбец15","Столбец16","Столбец17","Столбец18","Столбец19","Столбец20","Столбец21","Столбец22","Столбец23","Столбец24","Столбец25","Столбец26","Столбец27"]
[{"$f":"$A$1&\".\"&ROW()-3&\".\"","v":"36.1."},"Приобретение светодиодных ламп",null,null,null,{"$f":"G4*H4+I4*J4+K4*L4+M4*N4+O4*P4+Q4*R4+S4*T4+U4*V4+W4*X4+Y4*Z4+AA4*AB4+AC4*AD4","v":0}]
["36.2.","Установка светодиодных ламп",null,null,null,0]
["36.3.","Установка автоматического освещения в местах прохода работников",null,null,null,0]
["36.4.",null,null,null,null,0]
["36.5.",null,null,null,null,0]
["36.6.",null,null,null,null,0]
["36.7.",null,null,null,null,0]
["36.8.",null,null,null,null,0]
["36.9.",null,null,null,null,0]
["36.10.",null,null,null,null,0]
[]
[]
["ИТОГО",{"$f":"SUM(F:F)","v":0}]
[]
[null,"ВЕРНУТЬСЯ К ПЕРЕЧНЮ"]

{"sheet":"37","index":38,"n_rows":18,"n_cols":30,"rows_kept":18,"cut":false,"hidden":false,"merged":[[0,10,0,11],[0,0,1,0],[0,1,1,1],[0,5,1,5],[0,6,0,7],[0,8,0,9],[0,2,1,2],[0,3,1,3],[0,4,1,4],[0,24,0,25],[0,26,0,27],[0,28,0,29],[0,12,0,13],[0,14,0,15],[0,16,0,17],[0,18,0,19],[0,20,0,21],[0,22,0,23]]}
[37,"Устройство и содержание пешеходных дорог, тротуаров, переходов, тоннелей, галерей на территории организации в целях обеспечения безопасности работников","Ответственные","Ожидаемый результат","Источник финансирования","ИТОГО","Январь",null,"Февраль ",null,"Март",null,"Апрель",null,"Май",null,"Июнь",null,"Июль",null,"Август",null,"Сентябрь",null,"Октябрь",null,"Ноябрь",null,"Декабрь"]
[null,null,null,null,null,null,"кол-во","стоимость","кол-во","стоимость","кол-во","стоимость","кол-во","стоимость","кол-во","стоимость","кол-во","стоимость","кол-во","стоимость","кол-во","стоимость","кол-во","стоимость","кол-во","стоимость","кол-во","стоимость","кол-во","стоимость"]
["Столбец1","Столбец2","Столбец28","Столбец29","Столбец30","Столбец3","Столбец4","Столбец5","Столбец6","Столбец7","Столбец8","Столбец9","Столбец10","Столбец11","Столбец12","Столбец13","Столбец14","Столбец15","Столбец16","Столбец17","Столбец18","Столбец19","Столбец20","Столбец21","Столбец22","Столбец23","Столбец24","Столбец25","Столбец26","Столбец27"]
[{"$f":"$A$1&\".\"&ROW()-3&\".\"","v":"37.1."},"Установка дорожных знаков и указателей",null,null,null,{"$f":"G4*H4+I4*J4+K4*L4+M4*N4+O4*P4+Q4*R4+S4*T4+U4*V4+W4*X4+Y4*Z4+AA4*AB4+AC4*AD4","v":0}]
["37.2.",null,null,null,null,0]
["37.3.",null,null,null,null,0]
["37.4.",null,null,null,null,0]
["37.5.",null,null,null,null,0]
["37.6.",null,null,null,null,0]
["37.7.",null,null,null,null,0]
["37.8.",null,null,null,null,0]
["37.9.",null,null,null,null,0]
["37.10.",null,null,null,null,0]
[]
[]
["ИТОГО",{"$f":"SUM(F:F)","v":0}]
[]
[null,"ВЕРНУТЬСЯ К ПЕРЕЧНЮ"]

{"sheet":"38","index":39,"n_rows":18,"n_cols":30,"rows_kept":18,"cut":false,"hidden":false,"merged":[[0,10,0,11],[0,0,1,0],[0,1,1,1],[0,5,1,5],[0,6,0,7],[0,8,0,9],[0,2,1,2],[0,3,1,3],[0,4,1,4],[0,24,0,25],[0,26,0,27],[0,28,0,29],[0,12,0,13],[0,14,0,15],[0,16,0,17],[0,18,0,19],[0,20,0,21],[0,22,0,23]]}
[38,"Перепланировка размещения производственного оборудования, организация рабочих мест с целью обеспечения безопасности работников","Ответственные","Ожидаемый результат","Источник финансирования","ИТОГО","Январь",null,"Февраль ",null,"Март",null,"Апрель",null,"Май",null,"Июнь",null,"Июль",null,"Август",null,"Сентябрь",null,"Октябрь",null,"Ноябрь",null,"Декабрь"]
[null,null,null,null,null,null,"кол-во","стоимость","кол-во","стоимость","кол-во","стоимость","кол-во","стоимость","кол-во","стоимость","кол-во","стоимость","кол-во","стоимость","кол-во","стоимость","кол-во","стоимость","кол-во","стоимость","кол-во","стоимость","кол-во","стоимость"]
["Столбец1","Столбец2","Столбец28","Столбец29","Столбец30","Столбец3","Столбец4","Столбец5","Столбец6","Столбец7","Столбец8","Столбец9","Столбец10","Столбец11","Столбец12","Столбец13","Столбец14","Столбец15","Столбец16","Столбец17","Столбец18","Столбец19","Столбец20","Столбец21","Столбец22","Столбец23","Столбец24","Столбец25","Столбец26","Столбец27"]
[{"$f":"$A$1&\".\"&ROW()-3&\".\"","v":"38.1."},null,null,null,null,{"$f":"G4*H4+I4*J4+K4*L4+M4*N4+O4*P4+Q4*R4+S4*T4+U4*V4+W4*X4+Y4*Z4+AA4*AB4+AC4*AD4","v":0}]
["38.2.",null,null,null,null,0]
["38.3.",null,null,null,null,0]
["38.4.",null,null,null,null,0]
["38.5.",null,null,null,null,0]
["38.6.",null,null,null,null,0]
["38.7.",null,null,null,null,0]
["38.8.",null,null,null,null,0]
["38.9.",null,null,null,null,0]
["38.10.",null,null,null,null,0]
[]
[]
["ИТОГО",{"$f":"SUM(F:F)","v":0}]
[]
[null,"ВЕРНУТЬСЯ К ПЕРЕЧНЮ"]

{"sheet":"39","index":40,"n_rows":18,"n_cols":30,"rows_kept":18,"cut":false,"hidden":false,"merged":[[0,10,0,11],[0,0,1,0],[0,1,1,1],[0,5,1,5],[0,6,0,7],[0,8,0,9],[0,2,1,2],[0,3,1,3],[0,4,1,4],[0,24,0,25],[0,26,0,27],[0,28,0,29],[0,12,0,13],[0,14,0,15],[0,16,0,17],[0,18,0,19],[0,20,0,21],[0,22,0,23]]}
[39,"Приобретение систем обеспечения безопасности работ на высоте","Ответственные","Ожидаемый результат","Источник финансирования","ИТОГО","Январь",null,"Февраль ",null,"Март",null,"Апрель",null,"Май",null,"Июнь",null,"Июль",null,"Август",null,"Сентябрь",null,"Октябрь",null,"Ноябрь",null,"Декабрь"]
[null,null,null,null,null,null,"кол-во","стоимость","кол-во","стоимость","кол-во","стоимость","кол-во","стоимость","кол-во","стоимость","кол-во","стоимость","кол-во","стоимость","кол-во","стоимость","кол-во","стоимость","кол-во","стоимость","кол-во","стоимость","кол-во","стоимость"]
["Столбец1","Столбец2","Столбец28","Столбец29","Столбец30","Столбец3","Столбец4","Столбец5","Столбец6","Столбец7","Столбец8","Столбец9","Столбец10","Столбец11","Столбец12","Столбец13","Столбец14","Столбец15","Столбец16","Столбец17","Столбец18","Столбец19","Столбец20","Столбец21","Столбец22","Столбец23","Столбец24","Столбец25","Столбец26","Столбец27"]
[{"$f":"$A$1&\".\"&ROW()-3&\".\"","v":"39.1."},"Приобретение страховочных привязей",null,null,null,{"$f":"G4*H4+I4*J4+K4*L4+M4*N4+O4*P4+Q4*R4+S4*T4+U4*V4+W4*X4+Y4*Z4+AA4*AB4+AC4*AD4","v":0}]
["39.2.","Приобретение систем крепления и анкерных устройств",null,null,null,0]
["39.3.","Приобретение ограждающих барьеров",null,null,null,0]
["39.4.",null,null,null,null,0]
["39.5.",null,null,null,null,0]
["39.6.",null,null,null,null,0]
["39.7.",null,null,null,null,0]
["39.8.",null,null,null,null,0]
["39.9.",null,null,null,null,0]
["39.10.",null,null,null,null,0]
[]
[]
["ИТОГО",{"$f":"SUM(F:F)","v":0}]
[]
[null,"ВЕРНУТЬСЯ К ПЕРЕЧНЮ"]

{"sheet":"40","index":41,"n_rows":18,"n_cols":30,"rows_kept":18,"cut":false,"hidden":false,"merged":[[0,10,0,11],[0,0,1,0],[0,1,1,1],[0,5,1,5],[0,6,0,7],[0,8,0,9],[0,2,1,2],[0,3,1,3],[0,4,1,4],[0,24,0,25],[0,26,0,27],[0,28,0,29],[0,12,0,13],[0,14,0,15],[0,16,0,17],[0,18,0,19],[0,20,0,21],[0,22,0,23]]}
[40,"Разработка и приобретение электронных программ документооборота ","Ответственные","Ожидаемый результат","Источник финансирования","ИТОГО","Январь",null,"Февраль ",null,"Март",null,"Апрель",null,"Май",null,"Июнь",null,"Июль",null,"Август",null,"Сентябрь",null,"Октябрь",null,"Ноябрь",null,"Декабрь"]
[null,null,null,null,null,null,"кол-во","стоимость","кол-во","стоимость","кол-во","стоимость","кол-во","стоимость","кол-во","стоимость","кол-во","стоимость","кол-во","стоимость","кол-во","стоимость","кол-во","стоимость","кол-во","стоимость","кол-во","стоимость","кол-во","стоимость"]
["Столбец1","Столбец2","Столбец28","Столбец29","Столбец30","Столбец3","Столбец4","Столбец5","Столбец6","Столбец7","Столбец8","Столбец9","Столбец10","Столбец11","Столбец12","Столбец13","Столбец14","Столбец15","Столбец16","Столбец17","Столбец18","Столбец19","Столбец20","Столбец21","Столбец22","Столбец23","Столбец24","Столбец25","Столбец26","Столбец27"]
[{"$f":"$A$1&\".\"&ROW()-3&\".\"","v":"40.1."},null,null,null,null,{"$f":"G4*H4+I4*J4+K4*L4+M4*N4+O4*P4+Q4*R4+S4*T4+U4*V4+W4*X4+Y4*Z4+AA4*AB4+AC4*AD4","v":0}]
["40.2.",null,null,null,null,0]
["40.3.",null,null,null,null,0]
["40.4.",null,null,null,null,0]
["40.5.",null,null,null,null,0]
["40.6.",null,null,null,null,0]
["40.7.",null,null,null,null,0]
["40.8.",null,null,null,null,0]
["40.9.",null,null,null,null,0]
["40.10.",null,null,null,null,0]
[]
[]
["ИТОГО",{"$f":"SUM(F:F)","v":0}]
[]
[null,"ВЕРНУТЬСЯ К ПЕРЕЧНЮ"]

{"sheet":"41","index":42,"n_rows":18,"n_cols":30,"rows_kept":18,"cut":false,"hidden":false,"merged":[[0,10,0,11],[0,0,1,0],[0,1,1,1],[0,5,1,5],[0,6,0,7],[0,8,0,9],[0,2,1,2],[0,3,1,3],[0,4,1,4],[0,24,0,25],[0,26,0,27],[0,28,0,29],[0,12,0,13],[0,14,0,15],[0,16,0,17],[0,18,0,19],[0,20,0,21],[0,22,0,23]]}
[41,"Приобретение приборов, устройств и оборудования для дистанционной фиксации процессов производства работ","Ответственные","Ожидаемый результат","Источник финансирования","ИТОГО","Январь",null,"Февраль ",null,"Март",null,"Апрель",null,"Май",null,"Июнь",null,"Июль",null,"Август",null,"Сентябрь",null,"Октябрь",null,"Ноябрь",null,"Декабрь"]
[null,null,null,null,null,null,"кол-во","стоимость","кол-во","стоимость","кол-во","стоимость","кол-во","стоимость","кол-во","стоимость","кол-во","стоимость","кол-во","стоимость","кол-во","стоимость","кол-во","стоимость","кол-во","стоимость","кол-во","стоимость","кол-во","стоимость"]
["Столбец1","Столбец2","Столбец28","Столбец29","Столбец30","Столбец3","Столбец4","Столбец5","Столбец6","Столбец7","Столбец8","Столбец9","Столбец10","Столбец11","Столбец12","Столбец13","Столбец14","Столбец15","Столбец16","Столбец17","Столбец18","Столбец19","Столбец20","Столбец21","Столбец22","Столбец23","Столбец24","Столбец25","Столбец26","Столбец27"]
[{"$f":"$A$1&\".\"&ROW()-3&\".\"","v":"41.1."},null,null,null,null,{"$f":"G4*H4+I4*J4+K4*L4+M4*N4+O4*P4+Q4*R4+S4*T4+U4*V4+W4*X4+Y4*Z4+AA4*AB4+AC4*AD4","v":0}]
["41.2.",null,null,null,null,0]
["41.3.",null,null,null,null,0]
["41.4.",null,null,null,null,0]
["41.5.",null,null,null,null,0]
["41.6.",null,null,null,null,0]
["41.7.",null,null,null,null,0]
["41.8.",null,null,null,null,0]
["41.9.",null,null,null,null,0]
["41.10.",null,null,null,null,0]
[]
[]
["ИТОГО",{"$f":"SUM(F:F)","v":0}]
[]
[null,"ВЕРНУТЬСЯ К ПЕРЕЧНЮ"]